Workbook

Sheet Раздел 1
A1: РЕЕСТР
A2: муниципальной собственности Черноморского городского поселения Северского района 2019 год РАЗДЕЛ 1 Муниципальное недвижимое имущество
A3: № по реестру | B3: Наименование недвижимого имущества | C3: Адрес (местоположение) недвижимого имущества | D3: Год ввода | E3: Площадь, протяженность и (или) иные параметры, характеризующие физические свойства недвижимого имущества | F3: Инвентарный номер муниципального имущества | G3: Сведения о кадастровой стоимости недвижимого имущества (кадастровый номер) | H3: Сведения о балансовой стоимости недвижимого имущества | I3: Сведения о начисленной амортизации (износе) | J3: Сведения об остаточной стоимости имущества, руб | K3: Сведения о правообладателе муниципального недвижимого имущества | L3: Реквизиты документов - оснований возникновения (прекращения) права муниципальной собственности на недвижимое имущество | M3: Сведения об установленных в отношении муниципального недвижимого имущества ограничениях (обременениях) с указанием основания и даты их возникновения и прекращения
A4: 1 | B4: 2 | C4: 3 | D4: 4 | E4: 5 | F4: 6 | G4: 7 | H4: 8 | I4: 9 | J4: 10 | K4: 11 | L4: 12 | M4: 13
A5: 1 | B5: Здание администрации | C5: п.Черноморский, ул.Дзержинского, 24 | D5: 1975 | E5: 686.9 | F5: 1101020021 | G5: 23:26:1103022:270 | H5: 8,272,738.98 | I5: 5,978,877.33 | J5: 2,293,861.65 | K5: Администрация Черноморского городского поселения (МКУ "УОДОМСУ Черноморского городского поселения" постановление №29 от 23.01.2015) передаче муниципального имущества в оперативное управление) | L5: Закон Краснодарского края от 13.11.2006г. № 1112-КЗ "О разграничении имущества, находящегося в собственности муниципального образования Северский район, между вновь образованными городскими, сельскими поселениями и муниципальным образованием Северский район, в состав которого они входят"
A6: 2 | B6: Гараж | C6: п.Черноморский, ул.Дзержинского, 24 | D6: 1975 | F6: 1101020022 | H6: 299,617.38 | I6: 299,617.38 | J6: 0.00 | K6: Администрация Черноморского городского поселения (МКУ "УОДОМСУ Черноморского городского поселения" постановление №29 от 23.01.2015 ) передаче муниципального имущества в оперативное управление) | L6: Закон Краснодарского края от 13.11.2006г. № 1112-КЗ "О разграничении имущества, находящегося в собственности муниципального образования Северский район, между вновь образованными городскими, сельскими поселениями и муниципальным образованием Северский район, в состав которого они входят"
A7: 5 | B7: Дом (кладбище) | C7: п.Черноморский ул. Первомайская, 19 | D7: 1992 | F7: 1101020023 | H7: 4,380.48 | I7: 4,380.48 | J7: 0.00 | K7: Администрация Черноморского городского поселения | L7: Закон Краснодарского края от 13.11.2006г. № 1112-КЗ "О разграничении имущества, находящегося в собственности муниципального образования Северский район, между вновь образованными городскими, сельскими поселениями и муниципальным образованием Северский район, в состав которого они входят"
A8: 18 | B8: Квартира № 1 | C8: п.Черноморский, ул.Советская, д.37/а кв.1 | D8: 1973 | E8: 34.2 | H8: 21,475.15 | I8: 9,753.50 | J8: =H8-I8 -> 11,721.65 | K8: Администрация Черноморского городского поселения | L8: Решение Совета муниципального образования Северский район от 25.09.2008г. № 767 «О передаче муниципального жилого фонда муниципального образования Северский район в собственность Черноморского городского поселения»; Решение Совета Черноморского городского поселения Северского района от 30.10.2008г. № 236 "О принятии жилого фонда в муниципальную казну Черноморского городского поселения безвозмездно от муниципального образования Северский район"
A9: 19 | B9: Квартира № 2 | C9: п. Черноморский ул. Советская, д. 37/а кв. 2 | D9: 1973 | E9: 26.4 | H9: 16,577.31 | I9: 7,529.02 | J9: 9,048.29 | K9: Администрация Черноморского городского поселения | L9: Решение Совета муниципального образования Северский район от 25.09.2008г. № 767 «О передаче муниципального жилого фонда муниципального образования Северский район в собственность Черноморского городского поселения»; Решение Совета Черноморского городского поселения Северского района от 30.10.2008г. № 236 "О принятии жилого фонда в муниципальную казну Черноморского городского поселения безвозмездно от муниципального образования Северский район"
A10: 20 | B10: Квартира № 3 | C10: п.Черноморский, ул.Советская, д.37/а кв.3 | D10: 1973 | E10: 63.1 | H10: 39,622.28 | I10: 17,995.49 | J10: 21,626.79 | K10: Администрация Черноморского городского поселения | L10: Решение Совета муниципального образования Северский район от 25.09.2008г. № 767 «О передаче муниципального жилого фонда муниципального образования Северский район в собственность Черноморского городского поселения»; Решение Совета Черноморского городского поселения Северского района от 30.10.2008г. № 236 "О принятии жилого фонда в муниципальную казну Черноморского городского поселения безвозмездно от муниципального образования Северский район"
A11: 21 | B11: Квартира № 5 | C11: п.Черноморский, ул.Советская, д.37/а кв.5 | D11: 1973 | E11: 34.4 | H11: 21,600.74 | I11: 9,810.54 | J11: 11,790.20 | K11: Администрация Черноморского городского поселения | L11: Решение Совета муниципального образования Северский район от 25.09.2008г. № 767 «О передаче муниципального жилого фонда муниципального образования Северский район в собственность Черноморского городского поселения»; Решение Совета Черноморского городского поселения Северского района от 30.10.2008г. № 236 "О принятии жилого фонда в муниципальную казну Черноморского городского поселения безвозмездно от муниципального образования Северский район"
A12: 22 | B12: Квартира № 6 | C12: п. Черноморский, ул. Советская, 37/а кв. 6 | D12: 1973 | E12: 26.8 | H12: 16,828.48 | I12: 7,643.10 | J12: 9,185.38 | K12: Администрация Черноморского городского поселения | L12: Решение Совета муниципального образования Северский район от 25.09.2008г. № 767 «О передаче муниципального жилого фонда муниципального образования Северский район в собственность Черноморского городского поселения»; Решение Совета Черноморского городского поселения Северского района от 30.10.2008г. № 236 "О принятии жилого фонда в муниципальную казну Черноморского городского поселения безвозмездно от муниципального образования Северский район"
A13: 23 | B13: Квартира № 7 | C13: п.Черноморский, ул.Советская, д.37/а кв.7 | D13: 1973 | E13: 34.7 | H13: 21,789.12 | I13: 9,896.10 | J13: 11,893.02 | K13: Администрация Черноморского городского поселения | L13: Решение Совета муниципального образования Северский район от 25.09.2008г. № 767 «О передаче муниципального жилого фонда муниципального образования Северский район в собственность Черноморского городского поселения»; Решение Совета Черноморского городского поселения Северского района от 30.10.2008г. № 236 "О принятии жилого фонда в муниципальную казну Черноморского городского поселения безвозмездно от муниципального образования Северский район"
A14: 24 | B14: Квартира № 8 | C14: п.Черноморский, ул.Советская, д.37/а кв.8 | D14: 1973 | E14: 26.7 | H14: 16,765.69 | I14: 7,614.58 | J14: 9,151.11 | K14: Администрация Черноморского городского поселения | L14: Решение Совета муниципального образования Северский район от 25.09.2008г. № 767 «О передаче муниципального жилого фонда муниципального образования Северский район в собственность Черноморского городского поселения»; Решение Совета Черноморского городского поселения Северского района от 30.10.2008г. № 236 "О принятии жилого фонда в муниципальную казну Черноморского городского поселения безвозмездно от муниципального образования Северский район"
A15: 40 | B15: Квартира № 1 | C15: п.Черноморский, ул.Пушкина, д.14 кв.1 | D15: 1949 | E15: 15.8 | H15: 14,443.55 | I15: 14,443.55 | J15: 0.00 | K15: Администрация Черноморского городского поселения | L15: Решение Совета муниципального образования Северский район от 25.09.2008г. № 767 «О передаче муниципального жилого фонда муниципального образования Северский район в собственность Черноморского городского поселения»; Решение Совета Черноморского городского поселения Северского района от 30.10.2008г. № 236 "О принятии жилого фонда в муниципальную казну Черноморского городского поселения безвозмездно от муниципального образования Северский район"
A16: 43 | B16: Квартира № 1 | C16: п.Октябрьский, ул.Пушкина, д.15 кв.1 | D16: 1949 | E16: 65.3 | H16: 37,357.28 | I16: 37,357.28 | J16: 0.00 | K16: Администрация Черноморского городского поселения | L16: Решение Совета муниципального образования Северский район от 25.09.2008г. № 767 «О передаче муниципального жилого фонда муниципального образования Северский район в собственность Черноморского городского поселения»; Решение Совета Черноморского городского поселения Северского района от 30.10.2008г. № 236 "О принятии жилого фонда в муниципальную казну Черноморского городского поселения безвозмездно от муниципального образования Северский район"
A17: 52 | B17: Квартира № 3 | C17: п.Черноморский, ул.Пушкина, д.4 кв.3 | D17: 1963 | E17: 32.9 | G17: 23:26:1103022:0:11/4 | H17: 5,818.13 | I17: 5,818.13 | J17: 0.00 | K17: Администрация Черноморского городского поселения | L17: Решение Совета муниципального образования Северский район от 25.09.2008г. № 767 «О передаче муниципального жилого фонда муниципального образования Северский район в собственность Черноморского городского поселения»; Решение Совета Черноморского городского поселения Северского района от 30.10.2008г. № 236 "О принятии жилого фонда в муниципальную казну Черноморского городского поселения безвозмездно от муниципального образования Северский район"
A18: 61 | B18: Квартира № 10 | C18: п.Черноморский, ул.Новороссийская, д.36 кв. 10 | D18: 1971 | E18: 27.9 | H18: 20,614.02 | I18: 6,376.60 | J18: =H18-I18 -> 14,237.42 | K18: Администрация Черноморского городского поселения | L18: Решение Совета муниципального образования Северский район от 25.09.2008г. № 767 «О передаче муниципального жилого фонда муниципального образования Северский район в собственность Черноморского городского поселения»; Решение Совета Черноморского городского поселения Северского района от 30.10.2008г. № 236 "О принятии жилого фонда в муниципальную казну Черноморского городского поселения безвозмездно от муниципального образования Северский район"
A19: 67 | B19: Квартира № 14 | C19: п.Черноморский, ул.Новороссийская, д.24 кв. 14 | D19: 1960 | E19: 26.04 | H19: 19,868.24 | I19: 6,260.57 | J19: =H19-I19 -> 13,607.67 | K19: Администрация Черноморского городского поселения | L19: Решение Совета муниципального образования Северский район от 25.09.2008г. № 767 «О передаче муниципального жилого фонда муниципального образования Северский район в собственность Черноморского городского поселения»; Решение Совета Черноморского городского поселения Северского района от 30.10.2008г. № 236 "О принятии жилого фонда в муниципальную казну Черноморского городского поселения безвозмездно от муниципального образования Северский район"
A20: 80 | B20: Квартира № 20 | C20: п.Черноморский, ул.Новороссийская, д.9 кв.20 | D20: 1973 | E20: 41.2 | H20: 41,123.53 | I20: 15,973.08 | J20: =H20-I20 -> 25,150.45 | K20: Администрация Черноморского городского поселения | L20: Решение Совета муниципального образования Северский район от 25.09.2008г. № 767 «О передаче муниципального жилого фонда муниципального образования Северский район в собственность Черноморского городского поселения»; Решение Совета Черноморского городского поселения Северского района от 30.10.2008г. № 236 "О принятии жилого фонда в муниципальную казну Черноморского городского поселения безвозмездно от муниципального образования Северский район"
A21: 84 | B21: Квартира № 8 | C21: п.Черноморский, ул.Новороссийская, д.12 кв.8 | D21: 1954 | E21: 43 | H21: 38,145.25 | I21: 23,618.25 | J21: =H21-I21 -> 14,527.00 | K21: Администрация Черноморского городского поселения | L21: Решение Совета муниципального образования Северский район от 25.09.2008г. № 767 «О передаче муниципального жилого фонда муниципального образования Северский район в собственность Черноморского городского поселения»; Решение Совета Черноморского городского поселения Северского района от 30.10.2008г. № 236 "О принятии жилого фонда в муниципальную казну Черноморского городского поселения безвозмездно от муниципального образования Северский район"
A22: 93 | B22: Квартира № 30 | C22: п.Черноморский, ул.Новая, д.11 кв. 30 | D22: 1985 | E22: 16.2 | H22: 14,983.33 | I22: 2,883.05 | J22: 12,100.28 | K22: Администрация Черноморского городского поселения | L22: Решение Совета муниципального образования Северский район от 25.09.2008г. № 767 «О передаче муниципального жилого фонда муниципального образования Северский район в собственность Черноморского городского поселения»; Решение Совета Черноморского городского поселения Северского района от 30.10.2008г. № 236 "О принятии жилого фонда в муниципальную казну Черноморского городского поселения безвозмездно от муниципального образования Северский район"
A23: 95 | B23: Квартира № 6а | C23: п.Черноморский, ул.Новая, д.11 кв. 6а | D23: 1985 | E23: 62.85 | H23: 58,129.76 | I23: 11,185.16 | J23: 46,944.60 | K23: Администрация Черноморского городского поселения | L23: Решение Совета муниципального образования Северский район от 25.09.2008г. № 767 «О передаче муниципального жилого фонда муниципального образования Северский район в собственность Черноморского городского поселения»; Решение Совета Черноморского городского поселения Северского района от 30.10.2008г. № 236 "О принятии жилого фонда в муниципальную казну Черноморского городского поселения безвозмездно от муниципального образования Северский район"
A24: 101 | B24: Квартира № 28 | C24: п.Черноморский, ул.Новая, д. 9 кв. 28 | D24: 1984 | E24: 60.6 | H24: 60,155.37 | I24: 12,056.16 | J24: 48,099.21 | K24: Администрация Черноморского городского поселения | L24: Решение Совета муниципального образования Северский район от 25.09.2008г. № 767 «О передаче муниципального жилого фонда муниципального образования Северский район в собственность Черноморского городского поселения»; Решение Совета Черноморского городского поселения Северского района от 30.10.2008г. № 236 "О принятии жилого фонда в муниципальную казну Черноморского городского поселения безвозмездно от муниципального образования Северский район"
A25: 113 | B25: Квартира № 38 | C25: п.Черноморский, ул.Новая, д. 2 кв. 38 | D25: 1995 | E25: 67.4 | H25: 5,657.06 | I25: 907.50 | J25: 4,749.56 | K25: Администрация Черноморского городского поселения | L25: Решение Совета муниципального образования Северский район от 25.09.2008г. № 767 «О передаче муниципального жилого фонда муниципального образования Северский район в собственность Черноморского городского поселения»; Решение Совета Черноморского городского поселения Северского района от 30.10.2008г. № 236 "О принятии жилого фонда в муниципальную казну Черноморского городского поселения безвозмездно от муниципального образования Северский район"
A26: 125 | B26: Квартира № 2б | C26: п.Черноморский, ул.Мира, д. 52 кв. 2б | D26: 1952 | E26: 11.7 | H26: 8,537.72 | I26: 4,963.27 | J26: 3,574.45 | K26: Администрация Черноморского городского поселения | L26: Решение Совета муниципального образования Северский район от 25.09.2008г. № 767 «О передаче муниципального жилого фонда муниципального образования Северский район в собственность Черноморского городского поселения»; Решение Совета Черноморского городского поселения Северского района от 30.10.2008г. № 236 "О принятии жилого фонда в муниципальную казну Черноморского городского поселения безвозмездно от муниципального образования Северский район"
A27: 126 | B27: Квартира № 3 | C27: п.Черноморский, ул.Мира, д. 34 кв. 3 | D27: 1953 | E27: 41.4 | H27: 24,355.55 | I27: 13,915.11 | J27: 10,440.44 | K27: Администрация Черноморского городского поселения | L27: Решение Совета муниципального образования Северский район от 25.09.2008г. № 767 «О передаче муниципального жилого фонда муниципального образования Северский район в собственность Черноморского городского поселения»; Решение Совета Черноморского городского поселения Северского района от 30.10.2008г. № 236 "О принятии жилого фонда в муниципальную казну Черноморского городского поселения безвозмездно от муниципального образования Северский район"
A28: 128 | B28: Квартира № 2 | C28: п.Черноморский, ул.Мира, д. 36 кв. 2 | D28: 1958 | E28: 53.9 | H28: 41,383.90 | I28: 18,512.38 | J28: 22,871.52 | K28: Администрация Черноморского городского поселения | L28: Решение Совета муниципального образования Северский район от 25.09.2008г. № 767 «О передаче муниципального жилого фонда муниципального образования Северский район в собственность Черноморского городского поселения»; Решение Совета Черноморского городского поселения Северского района от 30.10.2008г. № 236 "О принятии жилого фонда в муниципальную казну Черноморского городского поселения безвозмездно от муниципального образования Северский район"
A29: 132 | B29: Квартира № 3 | C29: п.Черноморский, ул.Мира, д. 38 кв. 3 | D29: 1952 | E29: 45 | H29: 33,682.46 | I29: 15,067.28 | J29: 18,615.18 | K29: Администрация Черноморского городского поселения | L29: Решение Совета муниципального образования Северский район от 25.09.2008г. № 767 «О передаче муниципального жилого фонда муниципального образования Северский район в собственность Черноморского городского поселения»; Решение Совета Черноморского городского поселения Северского района от 30.10.2008г. № 236 "О принятии жилого фонда в муниципальную казну Черноморского городского поселения безвозмездно от муниципального образования Северский район"
A30: 133 | B30: Квартира № 2а | C30: п.Черноморский, ул.Мира, д. 38 кв. 2а | D30: 1952 | E30: 14.6 | H30: 10,928.09 | I30: 4,888.50 | J30: 6,039.59 | K30: Администрация Черноморского городского поселения | L30: Решение Совета муниципального образования Северский район от 25.09.2008г. № 767 «О передаче муниципального жилого фонда муниципального образования Северский район в собственность Черноморского городского поселения»; Решение Совета Черноморского городского поселения Северского района от 30.10.2008г. № 236 "О принятии жилого фонда в муниципальную казну Черноморского городского поселения безвозмездно от муниципального образования Северский район"
A31: 138 | B31: Квартира № 4 | C31: п.Черноморский, ул.Мира, д. 14 кв. 4 | D31: 1959 | E31: 28.9 | H31: 8,195.47 | I31: 8,195.47 | J31: 0.00 | K31: Администрация Черноморского городского поселения | L31: Решение Совета муниципального образования Северский район от 25.09.2008г. № 767 «О передаче муниципального жилого фонда муниципального образования Северский район в собственность Черноморского городского поселения»; Решение Совета Черноморского городского поселения Северского района от 30.10.2008г. № 236 "О принятии жилого фонда в муниципальную казну Черноморского городского поселения безвозмездно от муниципального образования Северский район"
A32: 141 | B32: Квартира № 4 | C32: п.Черноморский, ул.Мира, д. 4 кв. 4 | D32: 1959 | E32: 29.9 | H32: 21,453.99 | I32: 21,453.99 | J32: 0.00 | K32: Администрация Черноморского городского поселения | L32: Решение Совета муниципального образования Северский район от 25.09.2008г. № 767 «О передаче муниципального жилого фонда муниципального образования Северский район в собственность Черноморского городского поселения»; Решение Совета Черноморского городского поселения Северского района от 30.10.2008г. № 236 "О принятии жилого фонда в муниципальную казну Черноморского городского поселения безвозмездно от муниципального образования Северский район"
A33: 147 | B33: Квартира № 56 | C33: п.Черноморский, ул.Ленина, д. 20 кв. 56 | D33: 1987 | E33: 29.4 | H33: 52,992.07 | I33: 6,256.51 | J33: 46,735.56 | K33: Администрация Черноморского городского поселения | L33: Решение Совета муниципального образования Северский район от 25.09.2008г. № 767 «О передаче муниципального жилого фонда муниципального образования Северский район в собственность Черноморского городского поселения»; Решение Совета Черноморского городского поселения Северского района от 30.10.2008г. № 236 "О принятии жилого фонда в муниципальную казну Черноморского городского поселения безвозмездно от муниципального образования Северский район"
A34: 156 | B34: Квартира № 45 | C34: п.Черноморский, ул.Ленина, д. 20 кв. 45 | D34: 1987 | E34: 47 | H34: 84,715.22 | I34: 10,001.90 | J34: 74,713.32 | K34: Администрация Черноморского городского поселения | L34: Решение Совета муниципального образования Северский район от 25.09.2008г. № 767 «О передаче муниципального жилого фонда муниципального образования Северский район в собственность Черноморского городского поселения»; Решение Совета Черноморского городского поселения Северского района от 30.10.2008г. № 236 "О принятии жилого фонда в муниципальную казну Черноморского городского поселения безвозмездно от муниципального образования Северский район"
A35: 158 | B35: Квартира № 31 | C35: п.Черноморский, ул.Ленина, д. 4 кв. 31 | D35: 1991 | E35: 17.3 | H35: 39,689.32 | I35: 5,411.48 | J35: 34,277.84 | K35: Администрация Черноморского городского поселения | L35: Решение Совета муниципального образования Северский район от 25.09.2008г. № 767 «О передаче муниципального жилого фонда муниципального образования Северский район в собственность Черноморского городского поселения»; Решение Совета Черноморского городского поселения Северского района от 30.10.2008г. № 236 "О принятии жилого фонда в муниципальную казну Черноморского городского поселения безвозмездно от муниципального образования Северский район"
A36: 168 | B36: Квартира № 31 а | C36: п.Черноморский, ул.Ленина, д. 4 кв. 31а | D36: 1991 | E36: 20.6 | H36: 47,260.12 | I36: 10,330.17 | J36: 36,928.95 | K36: Администрация Черноморского городского поселения | L36: Решение Совета муниципального образования Северский район от 25.09.2008г. № 767 «О передаче муниципального жилого фонда муниципального образования Северский район в собственность Черноморского городского поселения»; Решение Совета Черноморского городского поселения Северского района от 30.10.2008г. № 236 "О принятии жилого фонда в муниципальную казну Черноморского городского поселения безвозмездно от муниципального образования Северский район"
A37: 169 | B37: Квартира № 31 б | C37: п.Черноморский, ул.Ленина, д. 4 кв. 31 б | D37: 1991 | E37: 31.3 | H37: 71,807.85 | I37: 9,790.71 | J37: 62,617.14 | K37: Администрация Черноморского городского поселения | L37: Решение Совета муниципального образования Северский район от 25.09.2008г. № 767 «О передаче муниципального жилого фонда муниципального образования Северский район в собственность Черноморского городского поселения»; Решение Совета Черноморского городского поселения Северского района от 30.10.2008г. № 236 "О принятии жилого фонда в муниципальную казну Черноморского городского поселения безвозмездно от муниципального образования Северский район"
A38: 177 | B38: Квартира № 17 | C38: п.Черноморский, ул.Ленина, д. 2 кв. 17 | D38: 2001 | E38: 63.5 | H38: 317,333.56 | I38: 16,342.68 | J38: 300,990.88 | K38: Администрация Черноморского городского поселения | L38: Решение Совета муниципального образования Северский район от 25.09.2008г. № 767 «О передаче муниципального жилого фонда муниципального образования Северский район в собственность Черноморского городского поселения»; Решение Совета Черноморского городского поселения Северского района от 30.10.2008г. № 236 "О принятии жилого фонда в муниципальную казну Черноморского городского поселения безвозмездно от муниципального образования Северский район"
A39: 181 | B39: Квартира № 40 | C39: п.Черноморский, ул.Ленина, д. 2 кв. 40 | D39: 2001 | E39: 50.37 | H39: 251,717.98 | I39: 12,963.48 | J39: 238,754.50 | K39: Администрация Черноморского городского поселения | L39: Решение Совета муниципального образования Северский район от 25.09.2008г. № 767 «О передаче муниципального жилого фонда муниципального образования Северский район в собственность Черноморского городского поселения»; Решение Совета Черноморского городского поселения Северского района от 30.10.2008г. № 236 "О принятии жилого фонда в муниципальную казну Черноморского городского поселения безвозмездно от муниципального образования Северский район"
A40: 186 | B40: Квартира № 54 | C40: п.Черноморский, ул.Ленина, д. 2 кв. 54 | D40: 2001 | E40: 65.49 | H40: 327,278.35 | I40: 16,854.84 | J40: 310,423.51 | K40: Администрация Черноморского городского поселения | L40: Решение Совета муниципального образования Северский район от 25.09.2008г. № 767 «О передаче муниципального жилого фонда муниципального образования Северский район в собственность Черноморского городского поселения»; Решение Совета Черноморского городского поселения Северского района от 30.10.2008г. № 236 "О принятии жилого фонда в муниципальную казну Черноморского городского поселения безвозмездно от муниципального образования Северский район"
A41: 191 | B41: Квартира № 5 | C41: п.Черноморский, ул.Крупской, д. 25 а кв. 5 | D41: 1972 | E41: 40.9 | H41: 39,319.06 | I41: 11,848.17 | J41: 27,470.89 | K41: Администрация Черноморского городского поселения | L41: Решение Совета муниципального образования Северский район от 25.09.2008г. № 767 «О передаче муниципального жилого фонда муниципального образования Северский район в собственность Черноморского городского поселения»; Решение Совета Черноморского городского поселения Северского района от 30.10.2008г. № 236 "О принятии жилого фонда в муниципальную казну Черноморского городского поселения безвозмездно от муниципального образования Северский район"
A42: 192 | B42: Квартира № 10 | C42: п.Черноморский, ул.Крупской, д. 14 кв. 10 | D42: 1950 | E42: 27 | H42: 9,023.04 | I42: 9,023.04 | J42: 0.00 | K42: Администрация Черноморского городского поселения | L42: Решение Совета муниципального образования Северский район от 25.09.2008г. № 767 «О передаче муниципального жилого фонда муниципального образования Северский район в собственность Черноморского городского поселения»; Решение Совета Черноморского городского поселения Северского района от 30.10.2008г. № 236 "О принятии жилого фонда в муниципальную казну Черноморского городского поселения безвозмездно от муниципального образования Северский район"
A43: 193 | B43: Квартира № 4 | C43: п.Черноморский, ул.Крупской, д. 15 кв. 4 | D43: 1950 | E43: 77.8 | H43: 40,086.13 | I43: 40,086.13 | J43: 0.00 | K43: Администрация Черноморского городского поселения | L43: Решение Совета муниципального образования Северский район от 25.09.2008г. № 767 «О передаче муниципального жилого фонда муниципального образования Северский район в собственность Черноморского городского поселения»; Решение Совета Черноморского городского поселения Северского района от 30.10.2008г. № 236 "О принятии жилого фонда в муниципальную казну Черноморского городского поселения безвозмездно от муниципального образования Северский район"
A44: 195 | B44: Квартира № 3 | C44: п.Черноморский, ул.Крупской д. 16 кв. 3 | D44: 1950 | E44: 27.2 | H44: 14,131.50 | I44: 14,131.50 | J44: 0.00 | K44: Администрация Черноморского городского поселения | L44: Решение Совета муниципального образования Северский район от 25.09.2008г. № 767 «О передаче муниципального жилого фонда муниципального образования Северский район в собственность Черноморского городского поселения»; Решение Совета Черноморского городского поселения Северского района от 30.10.2008г. № 236 "О принятии жилого фонда в муниципальную казну Черноморского городского поселения безвозмездно от муниципального образования Северский район"
A45: 196 | B45: Квартира № 9 | C45: п.Черноморский, ул.Крупской, д. 16 кв. 9 | D45: 1950 | E45: 27 | H45: 14,027.59 | I45: 14,027.59 | J45: 0.00 | K45: Администрация Черноморского городского поселения | L45: Решение Совета муниципального образования Северский район от 25.09.2008г. № 767 «О передаче муниципального жилого фонда муниципального образования Северский район в собственность Черноморского городского поселения»; Решение Совета Черноморского городского поселения Северского района от 30.10.2008г. № 236 "О принятии жилого фонда в муниципальную казну Черноморского городского поселения безвозмездно от муниципального образования Северский район"
A46: 199 | B46: Квартира № 4 | C46: п.Черноморский, ул.Крупской, д. 17 кв. 4 | D46: 1950 | E46: 27.5 | H46: 12,478.26 | I46: 11,245.92 | J46: 1,234.34 | K46: Администрация Черноморского городского поселения | L46: Решение Совета муниципального образования Северский район от 25.09.2008г. № 767 «О передаче муниципального жилого фонда муниципального образования Северский район в собственность Черноморского городского поселения»; Решение Совета Черноморского городского поселения Северского района от 30.10.2008г. № 236 "О принятии жилого фонда в муниципальную казну Черноморского городского поселения безвозмездно от муниципального образования Северский район"
A47: 204 | B47: Квартира № 3 | C47: п.Черноморский, ул.Крупской, д. 22 кв. 3 | D47: 1950 | E47: 41.8 | H47: 55,146.35 | I47: 38,064.93 | J47: 17,081.42 | K47: Администрация Черноморского городского поселения | L47: Решение Совета муниципального образования Северский район от 25.09.2008г. № 767 «О передаче муниципального жилого фонда муниципального образования Северский район в собственность Черноморского городского поселения»; Решение Совета Черноморского городского поселения Северского района от 30.10.2008г. № 236 "О принятии жилого фонда в муниципальную казну Черноморского городского поселения безвозмездно от муниципального образования Северский район"
A48: 209 | B48: Квартира № 4 | C48: п.Черноморский, ул.Крупской, д. 4 кв. 4 | D48: 1950 | E48: 27 | H48: 12,150.77 | I48: 9,910.68 | J48: 2,240.09 | K48: Администрация Черноморского городского поселения | L48: Решение Совета муниципального образования Северский район от 25.09.2008г. № 767 «О передаче муниципального жилого фонда муниципального образования Северский район в собственность Черноморского городского поселения»; Решение Совета Черноморского городского поселения Северского района от 30.10.2008г. № 236 "О принятии жилого фонда в муниципальную казну Черноморского городского поселения безвозмездно от муниципального образования Северский район"
A49: 212 | B49: Квартира № 5 | C49: п.Черноморский, ул.Крупской, д. 10 кв. 5 | D49: 1950 | E49: 28.2 | H49: 12,365.42 | I49: 12,365.42 | J49: 0.00 | K49: Администрация Черноморского городского поселения | L49: Решение Совета муниципального образования Северский район от 25.09.2008г. № 767 «О передаче муниципального жилого фонда муниципального образования Северский район в собственность Черноморского городского поселения»; Решение Совета Черноморского городского поселения Северского района от 30.10.2008г. № 236 "О принятии жилого фонда в муниципальную казну Черноморского городского поселения безвозмездно от муниципального образования Северский район"
A50: 216 | B50: Квартира № 3 | C50: п.Черноморский, ул.Космонавтов, д. 6 кв. 3 | D50: 1960 | E50: 24.1 | H50: 12,395.59 | I50: 5,906.52 | J50: 6,489.07 | K50: Администрация Черноморского городского поселения | L50: Решение Совета муниципального образования Северский район от 25.09.2008г. № 767 «О передаче муниципального жилого фонда муниципального образования Северский район в собственность Черноморского городского поселения»; Решение Совета Черноморского городского поселения Северского района от 30.10.2008г. № 236 "О принятии жилого фонда в муниципальную казну Черноморского городского поселения безвозмездно от муниципального образования Северский район"
A51: 220 | B51: Квартира № 1 а | C51: п.Черноморский, ул.Кирова, д. 33 кв. 1а | D51: 1960 | E51: 26.1 | H51: 15,042.26 | I51: 4,169.22 | J51: 10,873.04 | K51: Администрация Черноморского городского поселения | L51: Решение Совета муниципального образования Северский район от 25.09.2008г. № 767 «О передаче муниципального жилого фонда муниципального образования Северский район в собственность Черноморского городского поселения»; Решение Совета Черноморского городского поселения Северского района от 30.10.2008г. № 236 "О принятии жилого фонда в муниципальную казну Черноморского городского поселения безвозмездно от муниципального образования Северский район"
A52: 228 | B52: Квартира № 1 | C52: п.Черноморский, ул.Кирова, д. 27 кв. 1 | D52: 1952 | E52: 45.6 | H52: 35,586.91 | I52: 19,827.82 | J52: 15,759.09 | K52: Администрация Черноморского городского поселения | L52: Решение Совета муниципального образования Северский район от 25.09.2008г. № 767 «О передаче муниципального жилого фонда муниципального образования Северский район в собственность Черноморского городского поселения»; Решение Совета Черноморского городского поселения Северского района от 30.10.2008г. № 236 "О принятии жилого фонда в муниципальную казну Черноморского городского поселения безвозмездно от муниципального образования Северский район"
A53: 232 | B53: Квартира № 5 | C53: п.Черноморский, ул.Кирова, д. 31 кв. 5 | D53: 1954 | E53: 63.5 | H53: 36,930.34 | I53: 19,837.76 | J53: 17,092.58 | K53: Администрация Черноморского городского поселения | L53: Решение Совета муниципального образования Северский район от 25.09.2008г. № 767 «О передаче муниципального жилого фонда муниципального образования Северский район в собственность Черноморского городского поселения»; Решение Совета Черноморского городского поселения Северского района от 30.10.2008г. № 236 "О принятии жилого фонда в муниципальную казну Черноморского городского поселения безвозмездно от муниципального образования Северский район"
A54: 235 | B54: Квартира № 1б | C54: п.Черноморский, ул.Кирова, д. 31 кв. 1б | D54: 1954 | E54: 13.7 | H54: 7,967.65 | I54: 4,404.92 | J54: 3,562.73 | K54: Администрация Черноморского городского поселения | L54: Решение Совета муниципального образования Северский район от 25.09.2008г. № 767 «О передаче муниципального жилого фонда муниципального образования Северский район в собственность Черноморского городского поселения»; Решение Совета Черноморского городского поселения Северского района от 30.10.2008г. № 236 "О принятии жилого фонда в муниципальную казну Черноморского городского поселения безвозмездно от муниципального образования Северский район"
A55: 243 | B55: Квартира № 5 | C55: п.Черноморский, ул.Калинина, д. 24 кв. 5 | D55: 1949 | E55: 29.24 | H55: 11,643.41 | I55: 11,643.41 | J55: 0.00 | K55: Администрация Черноморского городского поселения | L55: Решение Совета муниципального образования Северский район от 25.09.2008г. № 767 «О передаче муниципального жилого фонда муниципального образования Северский район в собственность Черноморского городского поселения»; Решение Совета Черноморского городского поселения Северского района от 30.10.2008г. № 236 "О принятии жилого фонда в муниципальную казну Черноморского городского поселения безвозмездно от муниципального образования Северский район"
A56: 245 | B56: Квартира № 3 | C56: п.Черноморский, ул.Калинина, д. 25 кв. 3 | D56: 1949 | E56: 27.5 | H56: 1,585.34 | I56: 1,169.77 | J56: 0.00 | K56: Администрация Черноморского городского поселения | L56: Решение Совета муниципального образования Северский район от 25.09.2008г. № 767 «О передаче муниципального жилого фонда муниципального образования Северский район в собственность Черноморского городского поселения»; Решение Совета Черноморского городского поселения Северского района от 30.10.2008г. № 236 "О принятии жилого фонда в муниципальную казну Черноморского городского поселения безвозмездно от муниципального образования Северский район"
A57: 246 | B57: Квартира № 3 | C57: п.Черноморский, ул.Калинина, д. 26 кв. 3 | D57: 1949 | E57: 38.3 | H57: 54,864.82 | I57: 54,864.82 | J57: 0.00 | K57: Администрация Черноморского городского поселения | L57: Решение Совета муниципального образования Северский район от 25.09.2008г. № 767 «О передаче муниципального жилого фонда муниципального образования Северский район в собственность Черноморского городского поселения»; Решение Совета Черноморского городского поселения Северского района от 30.10.2008г. № 236 "О принятии жилого фонда в муниципальную казну Черноморского городского поселения безвозмездно от муниципального образования Северский район"
A58: 249 | B58: Квартира № 6 | C58: п.Черноморский, ул.Калинина, д. 37 кв. 6 | D58: 1958 | E58: 43.3 | G58: 23:26:1103016:201 | H58: 17,607.55 | I58: 17,607.55 | J58: 0.00 | K58: Администрация Черноморского городского поселения | L58: Решение Совета муниципального образования Северский район от 25.09.2008г. № 767 «О передаче муниципального жилого фонда муниципального образования Северский район в собственность Черноморского городского поселения»; Решение Совета Черноморского городского поселения Северского района от 30.10.2008г. № 236 "О принятии жилого фонда в муниципальную казну Черноморского городского поселения безвозмездно от муниципального образования Северский район"
A59: 251 | B59: Квартира № 6 | C59: п.Черноморский, ул.Калинина, д. 16 кв. 6 | D59: 1949 | E59: 56 | H59: 48,510.60 | I59: 48,510.60 | J59: 0.00 | K59: Администрация Черноморского городского поселения | L59: Решение Совета муниципального образования Северский район от 25.09.2008г. № 767 «О передаче муниципального жилого фонда муниципального образования Северский район в собственность Черноморского городского поселения»; Решение Совета Черноморского городского поселения Северского района от 30.10.2008г. № 236 "О принятии жилого фонда в муниципальную казну Черноморского городского поселения безвозмездно от муниципального образования Северский район"
A60: 261 | B60: Квартира № 6 | C60: п.Черноморский, ул.Калинина, д. 8 кв. 6 | D60: 1960 | E60: 25.7 | H60: 16,790.35 | I60: 13,810.43 | J60: 2,979.92 | K60: Администрация Черноморского городского поселения | L60: Решение Совета муниципального образования Северский район от 25.09.2008г. № 767 «О передаче муниципального жилого фонда муниципального образования Северский район в собственность Черноморского городского поселения»; Решение Совета Черноморского городского поселения Северского района от 30.10.2008г. № 236 "О принятии жилого фонда в муниципальную казну Черноморского городского поселения безвозмездно от муниципального образования Северский район"
A61: 266 | B61: Квартира № 3 | C61: п.Черноморский, ул.Калинина, д. 11 кв. 3 | D61: 1949 | E61: 39.3 | H61: 28,481.91 | I61: 28,481.91 | J61: 0.00 | K61: Администрация Черноморского городского поселения | L61: Решение Совета муниципального образования Северский район от 25.09.2008г. № 767 «О передаче муниципального жилого фонда муниципального образования Северский район в собственность Черноморского городского поселения»; Решение Совета Черноморского городского поселения Северского района от 30.10.2008г. № 236 "О принятии жилого фонда в муниципальную казну Черноморского городского поселения безвозмездно от муниципального образования Северский район"
A62: 267 | B62: Квартира № 5 | C62: п.Черноморский, ул.Калинина, д. 11 кв. 5 | D62: 1949 | E62: 35.9 | H62: 26,017.83 | I62: 26,017.83 | J62: 0.00 | K62: Администрация Черноморского городского поселения | L62: Решение Совета муниципального образования Северский район от 25.09.2008г. № 767 «О передаче муниципального жилого фонда муниципального образования Северский район в собственность Черноморского городского поселения»; Решение Совета Черноморского городского поселения Северского района от 30.10.2008г. № 236 "О принятии жилого фонда в муниципальную казну Черноморского городского поселения безвозмездно от муниципального образования Северский район"
A63: 268 | B63: Квартира № 6 | C63: п.Черноморский, ул.Калинина, д. 11 кв. 6 | D63: 1949 | E63: 38.1 | H63: 27,612.24 | I63: 27,612.24 | J63: 0.00 | K63: Администрация Черноморского городского поселения | L63: Решение Совета муниципального образования Северский район от 25.09.2008г. № 767 «О передаче муниципального жилого фонда муниципального образования Северский район в собственность Черноморского городского поселения»; Решение Совета Черноморского городского поселения Северского района от 30.10.2008г. № 236 "О принятии жилого фонда в муниципальную казну Черноморского городского поселения безвозмездно от муниципального образования Северский район"
A64: 278 | B64: Квартира № 1 | C64: п.Черноморский, ул.Калинина, д. 4 кв. 1 | D64: 1951 | E64: 60.2 | H64: 400,181.73 | I64: 105,781.64 | J64: 294,400.09 | K64: Администрация Черноморского городского поселения | L64: Решение Совета муниципального образования Северский район от 25.09.2008г. № 767 «О передаче муниципального жилого фонда муниципального образования Северский район в собственность Черноморского городского поселения»; Решение Совета Черноморского городского поселения Северского района от 30.10.2008г. № 236 "О принятии жилого фонда в муниципальную казну Черноморского городского поселения безвозмездно от муниципального образования Северский район"
A65: 279 | B65: Квартира № 2 | C65: п.Черноморский, ул.Калинина, д. 4 кв. 2 | D65: 1951 | E65: 75.4 | H65: 68,975.95 | I65: 18,232.69 | J65: 50,743.26 | K65: Администрация Черноморского городского поселения | L65: Решение Совета муниципального образования Северский район от 25.09.2008г. № 767 «О передаче муниципального жилого фонда муниципального образования Северский район в собственность Черноморского городского поселения»; Решение Совета Черноморского городского поселения Северского района от 30.10.2008г. № 236 "О принятии жилого фонда в муниципальную казну Черноморского городского поселения безвозмездно от муниципального образования Северский район"
A66: 280 | B66: Квартира № 3 | C66: п.Черноморский, ул.Калинина, д. 4 кв. 3 | D66: 1951 | E66: 61.1 | H66: 55,894.30 | I66: 14,774.76 | J66: 41,119.54 | K66: Администрация Черноморского городского поселения | L66: Решение Совета муниципального образования Северский район от 25.09.2008г. № 767 «О передаче муниципального жилого фонда муниципального образования Северский район в собственность Черноморского городского поселения»; Решение Совета Черноморского городского поселения Северского района от 30.10.2008г. № 236 "О принятии жилого фонда в муниципальную казну Черноморского городского поселения безвозмездно от муниципального образования Северский район"
A67: 281 | B67: Квартира № 4 | C67: п.Черноморский, ул.Калинина, д. 4 кв. 4 | D67: 1951 | E67: 61.5 | H67: 56,260.22 | I67: 16,871.49 | J67: 39,388.73 | K67: Администрация Черноморского городского поселения | L67: Решение Совета муниципального образования Северский район от 25.09.2008г. № 767 «О передаче муниципального жилого фонда муниципального образования Северский район в собственность Черноморского городского поселения»; Решение Совета Черноморского городского поселения Северского района от 30.10.2008г. № 236 "О принятии жилого фонда в муниципальную казну Черноморского городского поселения безвозмездно от муниципального образования Северский район"
A68: 282 | B68: Квартира № 5 | C68: п.Черноморский, ул.Калинина, д. 4 кв. 5 | D68: 1951 | E68: 24 | H68: 21,955.21 | I68: 5,803.51 | J68: 16,151.70 | K68: Администрация Черноморского городского поселения | L68: Решение Совета муниципального образования Северский район от 25.09.2008г. № 767 «О передаче муниципального жилого фонда муниципального образования Северский район в собственность Черноморского городского поселения»; Решение Совета Черноморского городского поселения Северского района от 30.10.2008г. № 236 "О принятии жилого фонда в муниципальную казну Черноморского городского поселения безвозмездно от муниципального образования Северский район"
A69: 283 | B69: Квартира № 6 | C69: п.Черноморский, ул.Калинина, д. 4 кв. 6 | D69: 1951 | E69: 23.2 | H69: 21,223.37 | I69: 5,610.06 | J69: 15,613.31 | K69: Администрация Черноморского городского поселения | L69: Решение Совета муниципального образования Северский район от 25.09.2008г. № 767 «О передаче муниципального жилого фонда муниципального образования Северский район в собственность Черноморского городского поселения»; Решение Совета Черноморского городского поселения Северского района от 30.10.2008г. № 236 "О принятии жилого фонда в муниципальную казну Черноморского городского поселения безвозмездно от муниципального образования Северский район"
A70: 284 | B70: Квартира № 8 | C70: п.Черноморский, ул.Калинина, д. 4 кв. 8 | D70: 1951 | E70: 23.8 | H70: 21,772.25 | I70: 5,755.15 | J70: 16,017.10 | K70: Администрация Черноморского городского поселения | L70: Решение Совета муниципального образования Северский район от 25.09.2008г. № 767 «О передаче муниципального жилого фонда муниципального образования Северский район в собственность Черноморского городского поселения»; Решение Совета Черноморского городского поселения Северского района от 30.10.2008г. № 236 "О принятии жилого фонда в муниципальную казну Черноморского городского поселения безвозмездно от муниципального образования Северский район"
A71: 285 | B71: Квартира № 8а | C71: п.Черноморский, ул.Калинина, д. 4 кв. 8а | D71: 1951 | E71: 16.2 | H71: 14,819.77 | I71: 3,917.37 | J71: 10,902.40 | K71: Администрация Черноморского городского поселения | L71: Решение Совета муниципального образования Северский район от 25.09.2008г. № 767 «О передаче муниципального жилого фонда муниципального образования Северский район в собственность Черноморского городского поселения»; Решение Совета Черноморского городского поселения Северского района от 30.10.2008г. № 236 "О принятии жилого фонда в муниципальную казну Черноморского городского поселения безвозмездно от муниципального образования Северский район"
A72: 287 | B72: Квартира № 23 | C72: п.Черноморский, ул.Кавказская, д. 14 кв. 23 | D72: 1981 | E72: 52.5 | G72: 23:26:1103018:156 | H72: 57,373.52 | I72: 17,059.04 | J72: 40,314.48 | K72: Администрация Черноморского городского поселения | L72: Решение Совета муниципального образования Северский район от 25.09.2008г. № 767 «О передаче муниципального жилого фонда муниципального образования Северский район в собственность Черноморского городского поселения»; Решение Совета Черноморского городского поселения Северского района от 30.10.2008г. № 236 "О принятии жилого фонда в муниципальную казну Черноморского городского поселения безвозмездно от муниципального образования Северский район"
A73: 290 | B73: Квартира № 16 | C73: п.Черноморский, ул.Кавказская, д. 15 кв. 16 | D73: 1969 | E73: 41.5 | H73: 35,843.60 | I73: 15,819.00 | J73: 20,024.60 | K73: Администрация Черноморского городского поселения | L73: Решение Совета муниципального образования Северский район от 25.09.2008г. № 767 «О передаче муниципального жилого фонда муниципального образования Северский район в собственность Черноморского городского поселения»; Решение Совета Черноморского городского поселения Северского района от 30.10.2008г. № 236 "О принятии жилого фонда в муниципальную казну Черноморского городского поселения безвозмездно от муниципального образования Северский район"
A74: 294 | B74: Квартира № 24 | C74: п.Черноморский, ул.Кавказская, д. 16 кв. 24 | D74: 1983 | E74: 63 | H74: 75,520.65 | I74: 30,624.29 | J74: 54,896.36 | K74: Администрация Черноморского городского поселения | L74: Решение Совета муниципального образования Северский район от 25.09.2008г. № 767 «О передаче муниципального жилого фонда муниципального образования Северский район в собственность Черноморского городского поселения»; Решение Совета Черноморского городского поселения Северского района от 30.10.2008г. № 236 "О принятии жилого фонда в муниципальную казну Черноморского городского поселения безвозмездно от муниципального образования Северский район"
A75: 311 | B75: Квартира № 14 | C75: п.Черноморский, ул.Кавказская, д. 2 кв. 14 | D75: 1976 | E75: 48.6 | H75: 70,842.32 | I75: 21,772.18 | J75: 49,070.14 | K75: Администрация Черноморского городского поселения | L75: Решение Совета муниципального образования Северский район от 25.09.2008г. № 767 «О передаче муниципального жилого фонда муниципального образования Северский район в собственность Черноморского городского поселения»; Решение Совета Черноморского городского поселения Северского района от 30.10.2008г. № 236 "О принятии жилого фонда в муниципальную казну Черноморского городского поселения безвозмездно от муниципального образования Северский район"
A76: 313 | B76: Квартира № 3 | C76: п.Черноморский, ул.Кавказская, д. 4 кв. 3 | D76: 1976 | E76: 52 | H76: 45,695.32 | I76: 14,043.68 | J76: 31,651.64 | K76: Администрация Черноморского городского поселения | L76: Решение Совета муниципального образования Северский район от 25.09.2008г. № 767 «О передаче муниципального жилого фонда муниципального образования Северский район в собственность Черноморского городского поселения»; Решение Совета Черноморского городского поселения Северского района от 30.10.2008г. № 236 "О принятии жилого фонда в муниципальную казну Черноморского городского поселения безвозмездно от муниципального образования Северский район"
A77: 321 | B77: Квартира № 21 | C77: п.Черноморский, ул.Дзержинского, д. 1а кв. 21 | D77: 1965 | E77: 27.2 | H77: 10,843.73 | I77: 10,843.73 | J77: 0.00 | K77: Администрация Черноморского городского поселения | L77: Решение Совета муниципального образования Северский район от 25.09.2008г. № 767 «О передаче муниципального жилого фонда муниципального образования Северский район в собственность Черноморского городского поселения»; Решение Совета Черноморского городского поселения Северского района от 30.10.2008г. № 236 "О принятии жилого фонда в муниципальную казну Черноморского городского поселения безвозмездно от муниципального образования Северский район"
A78: 324 | B78: Квартира № 12 | C78: п.Черноморский, ул.Дзержинского, д. 1а кв. 12 | D78: 1965 | E78: 27.1 | H78: 10,803.86 | I78: 10,803.86 | J78: 0.00 | K78: Администрация Черноморского городского поселения | L78: Решение Совета муниципального образования Северский район от 25.09.2008г. № 767 «О передаче муниципального жилого фонда муниципального образования Северский район в собственность Черноморского городского поселения»; Решение Совета Черноморского городского поселения Северского района от 30.10.2008г. № 236 "О принятии жилого фонда в муниципальную казну Черноморского городского поселения безвозмездно от муниципального образования Северский район"
A79: 325 | B79: Квартира № 5 | C79: п.Черноморский, ул.Дзержинского, д. 1а кв. 5 | D79: 1965 | E79: 11 | H79: 4,385.33 | I79: 4,385.33 | J79: 0.00 | K79: Администрация Черноморского городского поселения | L79: Решение Совета муниципального образования Северский район от 25.09.2008г. № 767 «О передаче муниципального жилого фонда муниципального образования Северский район в собственность Черноморского городского поселения»; Решение Совета Черноморского городского поселения Северского района от 30.10.2008г. № 236 "О принятии жилого фонда в муниципальную казну Черноморского городского поселения безвозмездно от муниципального образования Северский район"
A80: 326 | B80: Квартира № 7 | C80: п.Черноморский, ул.Дзержинского, д. 1а кв. 7 | D80: 1965 | E80: 14 | H80: 5,581.33 | I80: 5,581.33 | J80: 0.00 | K80: Администрация Черноморского городского поселения | L80: Решение Совета муниципального образования Северский район от 25.09.2008г. № 767 «О передаче муниципального жилого фонда муниципального образования Северский район в собственность Черноморского городского поселения»; Решение Совета Черноморского городского поселения Северского района от 30.10.2008г. № 236 "О принятии жилого фонда в муниципальную казну Черноморского городского поселения безвозмездно от муниципального образования Северский район"
A81: 327 | B81: Квартира № 14 | C81: п.Черноморский, ул.Дзержинского, д. 1а кв. 14 | D81: 1965 | E81: 13.63 | H81: 5,433.83 | I81: 5,433.83 | J81: 0.00 | K81: Администрация Черноморского городского поселения | L81: Решение Совета муниципального образования Северский район от 25.09.2008г. № 767 «О передаче муниципального жилого фонда муниципального образования Северский район в собственность Черноморского городского поселения»; Решение Совета Черноморского городского поселения Северского района от 30.10.2008г. № 236 "О принятии жилого фонда в муниципальную казну Черноморского городского поселения безвозмездно от муниципального образования Северский район"
A82: 328 | B82: Квартира № 23 | C82: п.Черноморский, ул.Дзержинского, д. 1а кв. 23 | D82: 1965 | E82: 11.5 | H82: 4,584.67 | I82: 4,584.67 | J82: 0.00 | K82: Администрация Черноморского городского поселения | L82: Решение Совета муниципального образования Северский район от 25.09.2008г. № 767 «О передаче муниципального жилого фонда муниципального образования Северский район в собственность Черноморского городского поселения»; Решение Совета Черноморского городского поселения Северского района от 30.10.2008г. № 236 "О принятии жилого фонда в муниципальную казну Черноморского городского поселения безвозмездно от муниципального образования Северский район"
A83: 329 | B83: Квартира № 24 | C83: п.Черноморский, ул.Дзержинского, д. 1а кв. 24 | D83: 1965 | E83: 13.6 | H83: 5,421.87 | I83: 5,421.87 | J83: 0.00 | K83: Администрация Черноморского городского поселения | L83: Решение Совета муниципального образования Северский район от 25.09.2008г. № 767 «О передаче муниципального жилого фонда муниципального образования Северский район в собственность Черноморского городского поселения»; Решение Совета Черноморского городского поселения Северского района от 30.10.2008г. № 236 "О принятии жилого фонда в муниципальную казну Черноморского городского поселения безвозмездно от муниципального образования Северский район"
A84: 330 | B84: Квартира № 1-3 | C84: п.Черноморский, ул.Дзержинского, д. 1а кв. 1-3 | D84: 1965 | E84: 13.6 | H84: 5,421.87 | I84: 5,421.87 | J84: 0.00 | K84: Администрация Черноморского городского поселения | L84: Решение Совета муниципального образования Северский район от 25.09.2008г. № 767 «О передаче муниципального жилого фонда муниципального образования Северский район в собственность Черноморского городского поселения»; Решение Совета Черноморского городского поселения Северского района от 30.10.2008г. № 236 "О принятии жилого фонда в муниципальную казну Черноморского городского поселения безвозмездно от муниципального образования Северский район"
E85: 13.5 | H85: 5,382.00 | I85: 5,382.00 | J85: 0.00
E86: 13.5 | H86: 5,382.00 | I86: 5,382.00 | J86: 0.00
A87: 331 | B87: Квартира № 6,8 | C87: п.Черноморский, ул.Дзержинского, д. 1а кв. 6,8 | D87: 1965 | E87: 13.5 | H87: 5,382.00 | I87: 5,382.00 | J87: 0.00 | K87: Администрация Черноморского городского поселения | L87: Решение Совета муниципального образования Северский район от 25.09.2008г. № 767 «О передаче муниципального жилого фонда муниципального образования Северский район в собственность Черноморского городского поселения»; Решение Совета Черноморского городского поселения Северского района от 30.10.2008г. № 236 "О принятии жилого фонда в муниципальную казну Черноморского городского поселения безвозмездно от муниципального образования Северский район"
E88: 14.1 | H88: 10,178.72 | I88: 10,178.72 | J88: 0.00
A89: 332 | B89: Квартира № 9-11 | C89: п.Черноморский, ул.Дзержинского, д. 1а кв. 9-11 | D89: 1965 | E89: 13.6 | H89: 5,421.87 | I89: 5,421.87 | J89: 0.00 | K89: Администрация Черноморского городского поселения | L89: Решение Совета муниципального образования Северский район от 25.09.2008г. № 767 «О передаче муниципального жилого фонда муниципального образования Северский район в собственность Черноморского городского поселения»; Решение Совета Черноморского городского поселения Северского района от 30.10.2008г. № 236 "О принятии жилого фонда в муниципальную казну Черноморского городского поселения безвозмездно от муниципального образования Северский район"
E90: 13.5 | H90: 5,382.00 | I90: 5,382.00 | J90: 0.00
E91: 13.5 | H91: 5,382.00 | I91: 5,382.00 | J91: 0.00
A92: 333 | B92: Квартира № 10,12 | C92: п.Черноморский, ул.Дзержинского, д. 1а кв. 10 | D92: 1965 | E92: 13.7 | H92: 5,461.73 | I92: 5,461.73 | J92: 0.00 | K92: Администрация Черноморского городского поселения | L92: Решение Совета муниципального образования Северский район от 25.09.2008г. № 767 «О передаче муниципального жилого фонда муниципального образования Северский район в собственность Черноморского городского поселения»; Решение Совета Черноморского городского поселения Северского района от 30.10.2008г. № 236 "О принятии жилого фонда в муниципальную казну Черноморского городского поселения безвозмездно от муниципального образования Северский район"
A93: 334 | B93: Квартира № 16-18 | C93: п.Черноморский, ул.Дзержинского, д. 1а кв. 16-18 | D93: 1965 | E93: 13.7 | H93: 5,461.73 | I93: 5,461.73 | J93: 0.00 | K93: Администрация Черноморского городского поселения | L93: Решение Совета муниципального образования Северский район от 25.09.2008г. № 767 «О передаче муниципального жилого фонда муниципального образования Северский район в собственность Черноморского городского поселения»; Решение Совета Черноморского городского поселения Северского района от 30.10.2008г. № 236 "О принятии жилого фонда в муниципальную казну Черноморского городского поселения безвозмездно от муниципального образования Северский район"
E94: 13.5 | H94: 5,382.00 | I94: 5,382.00 | J94: 0.00
E95: 13.6 | H95: 10,552.94 | I95: 10,552.94 | J95: 0.00
A96: 335 | B96: Квартира № 19,21 | C96: п.Черноморский, ул.Дзержинского, д. 1а кв. 19 | D96: 1965 | E96: 47.3 | H96: 18,856.93 | I96: 18,856.93 | J96: 0.00 | K96: Администрация Черноморского городского поселения | L96: Решение Совета муниципального образования Северский район от 25.09.2008г. № 767 «О передаче муниципального жилого фонда муниципального образования Северский район в собственность Черноморского городского поселения»; Решение Совета Черноморского городского поселения Северского района от 30.10.2008г. № 236 "О принятии жилого фонда в муниципальную казну Черноморского городского поселения безвозмездно от муниципального образования Северский район"
A97: 336 | B97: Квартира № 20-22 | C97: п.Черноморский, ул.Дзержинского, д. 1а кв. 20-22 | D97: 1965 | E97: 27.2 | H97: 10,843.73 | I97: 10,843.73 | J97: 0.00 | K97: Администрация Черноморского городского поселения | L97: Решение Совета муниципального образования Северский район от 25.09.2008г. № 767 «О передаче муниципального жилого фонда муниципального образования Северский район в собственность Черноморского городского поселения»; Решение Совета Черноморского городского поселения Северского района от 30.10.2008г. № 236 "О принятии жилого фонда в муниципальную казну Черноморского городского поселения безвозмездно от муниципального образования Северский район"
A98: 337 | B98: Квартира № 1 | C98: п.Черноморский, ул.Дзержинского, д. 30 кв. 1 | D98: 1960 | E98: 33.7 | H98: 12,805.64 | I98: 12,805.64 | J98: 0.00 | K98: Администрация Черноморского городского поселения | L98: Решение Совета муниципального образования Северский район от 25.09.2008г. № 767 «О передаче муниципального жилого фонда муниципального образования Северский район в собственность Черноморского городского поселения»; Решение Совета Черноморского городского поселения Северского района от 30.10.2008г. № 236 "О принятии жилого фонда в муниципальную казну Черноморского городского поселения безвозмездно от муниципального образования Северский район"
A99: 340 | B99: Квартира № 6 | C99: п.Черноморский, ул.Дзержинского, д. 30 кв. 6 | D99: 1960 | E99: 33.8 | H99: 12,843.64 | I99: 12,843.64 | J99: 0.00 | K99: Администрация Черноморского городского поселения | L99: Решение Совета муниципального образования Северский район от 25.09.2008г. № 767 «О передаче муниципального жилого фонда муниципального образования Северский район в собственность Черноморского городского поселения»; Решение Совета Черноморского городского поселения Северского района от 30.10.2008г. № 236 "О принятии жилого фонда в муниципальную казну Черноморского городского поселения безвозмездно от муниципального образования Северский район"
A100: 345 | B100: квартира № 18б | C100: п. Черноморский, ул.Гоголя, д.15, кв.18б | D100: 1977 | E100: 41.7 | H100: 26,246.62 | I100: 6,859.11 | J100: 19,387.51 | K100: Администрация Черноморского городского поселения | L100: Решение Совета муниципального образования Северский район от 25.09.2008г. № 767 «О передаче муниципального жилого фонда муниципального образования Северский район в собственность Черноморского городского поселения»; Решение Совета Черноморского городского поселения Северского района от 30.10.2008г. № 236 "О принятии жилого фонда в муниципальную казну Черноморского городского поселения безвозмездно от муниципального образования Северский район"
A101: 347 | B101: квартира № 12 | C101: п. Черноморский, ул.Гоголя, д.9 кв.12 | D101: 1949 | E101: 25.3 | H101: 21,533.57 | I101: 21,482.30 | J101: 51.27 | K101: Администрация Черноморского городского поселения | L101: Решение Совета муниципального образования Северский район от 25.09.2008г. № 767 «О передаче муниципального жилого фонда муниципального образования Северский район в собственность Черноморского городского поселения»; Решение Совета Черноморского городского поселения Северского района от 30.10.2008г. № 236 "О принятии жилого фонда в муниципальную казну Черноморского городского поселения безвозмездно от муниципального образования Северский район"
A102: 349 | B102: квартира № 7 | C102: п. Черноморский, ул.Гоголя, д.11 кв.7 | D102: 1949 | E102: 51.3 | H102: 32,019.18 | I102: 32,019.18 | J102: 0.00 | K102: Администрация Черноморского городского поселения | L102: Решение Совета муниципального образования Северский район от 25.09.2008г. № 767 «О передаче муниципального жилого фонда муниципального образования Северский район в собственность Черноморского городского поселения»; Решение Совета Черноморского городского поселения Северского района от 30.10.2008г. № 236 "О принятии жилого фонда в муниципальную казну Черноморского городского поселения безвозмездно от муниципального образования Северский район"
A103: 354 | B103: квартира № 4 | C103: п. Спутник. ул.Вокзальная. д.21 кв. 4 | D103: 1966 | E103: 38.4 | H103: 12,608.92 | I103: 5,148.64 | J103: 7,460.28 | K103: Администрация Черноморского городского поселения | L103: Решение Совета муниципального образования Северский район от 25.09.2008г. № 767 «О передаче муниципального жилого фонда муниципального образования Северский район в собственность Черноморского городского поселения»; Решение Совета Черноморского городского поселения Северского района от 30.10.2008г. № 236 "О принятии жилого фонда в муниципальную казну Черноморского городского поселения безвозмездно от муниципального образования Северский район"
A105: 356 | B105: квартира № 10 | C105: п. Спутник. ул.Вокзальная. д.21 кв. 10 | D105: 1966 | E105: 45.2 | H105: 14,841.75 | I105: 6,060.38 | J105: 8,781.37 | K105: Администрация Черноморского городского поселения | L105: Решение Совета муниципального образования Северский район от 25.09.2008г. № 767 «О передаче муниципального жилого фонда муниципального образования Северский район в собственность Черноморского городского поселения»; Решение Совета Черноморского городского поселения Северского района от 30.10.2008г. № 236 "О принятии жилого фонда в муниципальную казну Черноморского городского поселения безвозмездно от муниципального образования Северский район"
A107: 358 | B107: квартира № 6 | C107: п. Спутник. ул.Вокзальная. д.13 кв. 6 | D107: 1953 | E107: 62.2 | H107: 8,171.65 | I107: 3,531.50 | J107: 4,640.15 | K107: Администрация Черноморского городского поселения | L107: Решение Совета муниципального образования Северский район от 25.09.2008г. № 767 «О передаче муниципального жилого фонда муниципального образования Северский район в собственность Черноморского городского поселения»; Решение Совета Черноморского городского поселения Северского района от 30.10.2008г. № 236 "О принятии жилого фонда в муниципальную казну Черноморского городского поселения безвозмездно от муниципального образования Северский район"
A108: 362 | B108: квартира № 16 | C108: п.Черноморский, ул.Юбилейная, 95 а кв. 17 | D108: 1983 | E108: 62.6 | H108: 64,504.02 | I108: 13,312.98 | J108: 51,191.04 | K108: Администрация Черноморского городского поселения | L108: Решение Совета муниципального образования Северский район от 25.09.2008г. № 767 «О передаче муниципального жилого фонда муниципального образования Северский район в собственность Черноморского городского поселения»; Решение Совета Черноморского городского поселения Северского района от 30.10.2008г. № 236 "О принятии жилого фонда в муниципальную казну Черноморского городского поселения безвозмездно от муниципального образования Северский район"
A109: 371 | B109: квартира № 37 | C109: п.Черноморский, ул.Юбилейная, д. 95 а кв. 37 | D109: 1983 | E109: 77 | H109: 79,342.00 | I109: 16,375.40 | J109: 62,966.60 | K109: Администрация Черноморского городского поселения | L109: Решение Совета муниципального образования Северский район от 25.09.2008г. № 767 «О передаче муниципального жилого фонда муниципального образования Северский район в собственность Черноморского городского поселения»; Решение Совета Черноморского городского поселения Северского района от 30.10.2008г. № 236 "О принятии жилого фонда в муниципальную казну Черноморского городского поселения безвозмездно от муниципального образования Северский район"
A110: 374 | B110: квартира № 45 | C110: п.Черноморский, ул.Юбилейная, д. 95 а кв. 45 | D110: 1983 | E110: 62.7 | H110: 64,607.06 | I110: 13,334.25 | J110: 51,272.81 | K110: Администрация Черноморского городского поселения | L110: Решение Совета муниципального образования Северский район от 25.09.2008г. № 767 «О передаче муниципального жилого фонда муниципального образования Северский район в собственность Черноморского городского поселения»; Решение Совета Черноморского городского поселения Северского района от 30.10.2008г. № 236 "О принятии жилого фонда в муниципальную казну Черноморского городского поселения безвозмездно от муниципального образования Северский район"
A111: 376 | B111: квартира № 52 | C111: п.Черноморский, ул.Юбилейная, д. 95 а кв. 52 | D111: 1983 | E111: 51.8 | H111: 53,375.53 | I111: 11,016.18 | J111: 42,359.35 | K111: Администрация Черноморского городского поселения | L111: Решение Совета муниципального образования Северский район от 25.09.2008г. № 767 «О передаче муниципального жилого фонда муниципального образования Северский район в собственность Черноморского городского поселения»; Решение Совета Черноморского городского поселения Северского района от 30.10.2008г. № 236 "О принятии жилого фонда в муниципальную казну Черноморского городского поселения безвозмездно от муниципального образования Северский район"
A112: 386 | B112: квартира № 11 | C112: п.Черноморский, ул.Юбилейная, д. 102 кв. 11 | D112: 1958 | E112: 42.6 | H112: 22,364.32 | I112: 9,463.82 | J112: 12,900.50 | K112: Администрация Черноморского городского поселения | L112: Решение Совета муниципального образования Северский район от 25.09.2008г. № 767 «О передаче муниципального жилого фонда муниципального образования Северский район в собственность Черноморского городского поселения»; Решение Совета Черноморского городского поселения Северского района от 30.10.2008г. № 236 "О принятии жилого фонда в муниципальную казну Черноморского городского поселения безвозмездно от муниципального образования Северский район"
A113: 390 | B113: квартира № 12 | C113: п.Черноморский, ул.Юбилейная, д. 104 кв. 12 | D113: 1960 | E113: 40.5 | H113: 19,856.41 | I113: 8,085.01 | J113: 11,771.40 | K113: Администрация Черноморского городского поселения | L113: Решение Совета муниципального образования Северский район от 25.09.2008г. № 767 «О передаче муниципального жилого фонда муниципального образования Северский район в собственность Черноморского городского поселения»; Решение Совета Черноморского городского поселения Северского района от 30.10.2008г. № 236 "О принятии жилого фонда в муниципальную казну Черноморского городского поселения безвозмездно от муниципального образования Северский район"
A114: 396 | B114: квартира № 5 | C114: п.Черноморский, ул.Юбилейная, д. 79 кв. 5 | D114: 1949 | E114: 63 | H114: 67,104.15 | I114: 67,104.15 | J114: 0.00 | K114: Администрация Черноморского городского поселения | L114: Решение Совета муниципального образования Северский район от 25.09.2008г. № 767 «О передаче муниципального жилого фонда муниципального образования Северский район в собственность Черноморского городского поселения»; Решение Совета Черноморского городского поселения Северского района от 30.10.2008г. № 236 "О принятии жилого фонда в муниципальную казну Черноморского городского поселения безвозмездно от муниципального образования Северский район"
A115: 400 | B115: квартира № 4 | C115: п.Черноморский, ул.Юбилейная, д. 50 кв. 4 | D115: 1949 | E115: 38.7 | H115: 10,353.13 | I115: 10,353.13 | J115: 0.00 | K115: Администрация Черноморского городского поселения | L115: Решение Совета муниципального образования Северский район от 25.09.2008г. № 767 «О передаче муниципального жилого фонда муниципального образования Северский район в собственность Черноморского городского поселения»; Решение Совета Черноморского городского поселения Северского района от 30.10.2008г. № 236 "О принятии жилого фонда в муниципальную казну Черноморского городского поселения безвозмездно от муниципального образования Северский район"
A117: 401 | B117: Здание общежития | C117: п.Черноморский, ул.Юбилейная, д. 62 | D117: 1990 | E117: 1437 | H117: 2,373,012.13 | I117: 2,073,012.13 | J117: 0.00 | K117: Администрация Черноморского городского поселения | L117: Решение Совета муниципального образования Северский район от 25.09.2008г. № 767 «О передаче муниципального жилого фонда муниципального образования Северский район в собственность Черноморского городского поселения»; Решение Совета Черноморского городского поселения Северского района от 30.10.2008г. № 236 "О принятии жилого фонда в муниципальную казну Черноморского городского поселения безвозмездно от муниципального образования Северский район"
A118: 402 | B118: квартира № 1 | C118: п.Черноморский, ул.Юбилейная, д. 66 кв. 1 | D118: 1959 | E118: 64.4 | H118: 59,399.55 | I118: 32,808.45 | J118: 26,591.10 | K118: Администрация Черноморского городского поселения | L118: Решение Совета муниципального образования Северский район от 25.09.2008г. № 767 «О передаче муниципального жилого фонда муниципального образования Северский район в собственность Черноморского городского поселения»; Решение Совета Черноморского городского поселения Северского района от 30.10.2008г. № 236 "О принятии жилого фонда в муниципальную казну Черноморского городского поселения безвозмездно от муниципального образования Северский район"
A119: 403 | B119: квартира №1 | C119: п.Черноморский, ул.Юбилейная, д. 38 кв. 1 | D119: 1949 | E119: 51.4 | H119: 51,057.90 | I119: 32,489.83 | J119: 18,568.07 | K119: Администрация Черноморского городского поселения | L119: Решение Совета муниципального образования Северский район от 25.09.2008г. № 767 «О передаче муниципального жилого фонда муниципального образования Северский район в собственность Черноморского городского поселения»; Решение Совета Черноморского городского поселения Северского района от 30.10.2008г. № 236 "О принятии жилого фонда в муниципальную казну Черноморского городского поселения безвозмездно от муниципального образования Северский район"
A120: 406 | B120: квартира № 42 | C120: п.Черноморский, ул.Юбилейная, д. 42 кв. 42 | D120: 1948 | E120: 66.9 | H120: 6,747.63 | I120: 1,082.43 | J120: 5,665.20 | K120: Администрация Черноморского городского поселения | L120: Решение Совета муниципального образования Северский район от 25.09.2008г. № 767 «О передаче муниципального жилого фонда муниципального образования Северский район в собственность Черноморского городского поселения»; Решение Совета Черноморского городского поселения Северского района от 30.10.2008г. № 236 "О принятии жилого фонда в муниципальную казну Черноморского городского поселения безвозмездно от муниципального образования Северский район"
A121: 427 | B121: квартира № 1 | C121: Холмская подстанция, д. 1 кв. 1 | D121: 1949 | E121: 46.9 | H121: 15,363.97 | I121: 9,715.15 | J121: 5,648.82 | K121: Администрация Черноморского городского поселения | L121: Решение Совета муниципального образования Северский район от 25.09.2008г. № 767 «О передаче муниципального жилого фонда муниципального образования Северский район в собственность Черноморского городского поселения»; Решение Совета Черноморского городского поселения Северского района от 30.10.2008г. № 236 "О принятии жилого фонда в муниципальную казну Черноморского городского поселения безвозмездно от муниципального образования Северский район"
A122: 428 | B122: квартира № 2 | C122: Холмская подстанция, д. 1 кв. 2 | D122: 1949 | E122: 46.4 | H122: 15,200.18 | I122: 9,611.58 | J122: 5,588.60 | K122: Администрация Черноморского городского поселения | L122: Решение Совета муниципального образования Северский район от 25.09.2008г. № 767 «О передаче муниципального жилого фонда муниципального образования Северский район в собственность Черноморского городского поселения»; Решение Совета Черноморского городского поселения Северского района от 30.10.2008г. № 236 "О принятии жилого фонда в муниципальную казну Черноморского городского поселения безвозмездно от муниципального образования Северский район"
A123: 429 | B123: квартира № 3 | C123: Холмская подстанция, д. 1 кв. 3 | D123: 1949 | E123: 46.4 | H123: 15,200.18 | I123: 9,611.58 | J123: 5,588.60 | K123: Администрация Черноморского городского поселения | L123: Решение Совета муниципального образования Северский район от 25.09.2008г. № 767 «О передаче муниципального жилого фонда муниципального образования Северский район в собственность Черноморского городского поселения»; Решение Совета Черноморского городского поселения Северского района от 30.10.2008г. № 236 "О принятии жилого фонда в муниципальную казну Черноморского городского поселения безвозмездно от муниципального образования Северский район"
A124: 430 | B124: квартира № 4 | C124: Холмская подстанция, д. 1 кв. 4 | D124: 1949 | E124: 46.6 | H124: 15,265.70 | I124: 9,653.01 | J124: 5,612.69 | K124: Администрация Черноморского городского поселения | L124: Решение Совета муниципального образования Северский район от 25.09.2008г. № 767 «О передаче муниципального жилого фонда муниципального образования Северский район в собственность Черноморского городского поселения»; Решение Совета Черноморского городского поселения Северского района от 30.10.2008г. № 236 "О принятии жилого фонда в муниципальную казну Черноморского городского поселения безвозмездно от муниципального образования Северский район"
A125: 431 | B125: квартира № 5 | C125: Холмская подстанция, д. 1 кв. 5 | D125: 1949 | E125: 46.1 | H125: 15,101.90 | I125: 9,549.43 | J125: =H125-I125 -> 5,552.47 | K125: Администрация Черноморского городского поселения | L125: Решение Совета муниципального образования Северский район от 25.09.2008г. № 767 «О передаче муниципального жилого фонда муниципального образования Северский район в собственность Черноморского городского поселения»; Решение Совета Черноморского городского поселения Северского района от 30.10.2008г. № 236 "О принятии жилого фонда в муниципальную казну Черноморского городского поселения безвозмездно от муниципального образования Северский район"
A126: 432 | B126: квартира № 7 | C126: Холмская подстанция, д. 1 кв. 7 | D126: 1949 | E126: 46.1 | H126: 15,101.90 | I126: 9,549.43 | J126: =H126-I126 -> 5,552.47 | K126: Администрация Черноморского городского поселения | L126: Решение Совета муниципального образования Северский район от 25.09.2008г. № 767 «О передаче муниципального жилого фонда муниципального образования Северский район в собственность Черноморского городского поселения»; Решение Совета Черноморского городского поселения Северского района от 30.10.2008г. № 236 "О принятии жилого фонда в муниципальную казну Черноморского городского поселения безвозмездно от муниципального образования Северский район"
A127: 433 | B127: квартира № 8 | C127: Холмская подстанция, д. 1 кв. 8 | D127: 1949 | E127: 46.4 | H127: 15,200.18 | I127: 9,611.58 | J127: =H127-I127 -> 5,588.60 | K127: Администрация Черноморского городского поселения | L127: Решение Совета муниципального образования Северский район от 25.09.2008г. № 767 «О передаче муниципального жилого фонда муниципального образования Северский район в собственность Черноморского городского поселения»; Решение Совета Черноморского городского поселения Северского района от 30.10.2008г. № 236 "О принятии жилого фонда в муниципальную казну Черноморского городского поселения безвозмездно от муниципального образования Северский район"
A128: 438 | B128: квартира № 4 | C128: п. Черноморский, ул.Толстого, д. 15. кв. 4 | D128: 1949 | E128: 33.6 | H128: 19,262.82 | I128: 19,262.82 | J128: 0.00 | K128: Администрация Черноморского городского поселения | L128: Решение Совета муниципального образования Северский район от 25.09.2008г. № 767 «О передаче муниципального жилого фонда муниципального образования Северский район в собственность Черноморского городского поселения»; Решение Совета Черноморского городского поселения Северского района от 30.10.2008г. № 236 "О принятии жилого фонда в муниципальную казну Черноморского городского поселения безвозмездно от муниципального образования Северский район"
A129: 441 | B129: квартира № 7 | C129: п. Черноморский, ул.Толстого, д. 16. кв. 7 | D129: 1973 | E129: 28.4 | H129: 7,876.07 | I129: 7,876.07 | J129: 0.00 | K129: Администрация Черноморского городского поселения | L129: Решение Совета муниципального образования Северский район от 25.09.2008г. № 767 «О передаче муниципального жилого фонда муниципального образования Северский район в собственность Черноморского городского поселения»; Решение Совета Черноморского городского поселения Северского района от 30.10.2008г. № 236 "О принятии жилого фонда в муниципальную казну Черноморского городского поселения безвозмездно от муниципального образования Северский район"
A130: 461 | B130: квартира № 2 | C130: п. Черноморский, ул.Тельмана, д. 6 кв. 2 | D130: 1960 | E130: 30.6 | H130: 30,722.57 | I130: 12,509.22 | J130: 18,213.35 | K130: Администрация Черноморского городского поселения | L130: Решение Совета муниципального образования Северский район от 25.09.2008г. № 767 «О передаче муниципального жилого фонда муниципального образования Северский район в собственность Черноморского городского поселения»; Решение Совета Черноморского городского поселения Северского района от 30.10.2008г. № 236 "О принятии жилого фонда в муниципальную казну Черноморского городского поселения безвозмездно от муниципального образования Северский район"
A131: 462 | B131: квартира № 2а | C131: п. Черноморский, ул.Тельмана, д. 6 кв. 2а | D131: 1960 | E131: 15.2 | H131: 15,260.88 | I131: 6,123.73 | J131: 9,047.15 | K131: Администрация Черноморского городского поселения | L131: Решение Совета муниципального образования Северский район от 25.09.2008г. № 767 «О передаче муниципального жилого фонда муниципального образования Северский район в собственность Черноморского городского поселения»; Решение Совета Черноморского городского поселения Северского района от 30.10.2008г. № 236 "О принятии жилого фонда в муниципальную казну Черноморского городского поселения безвозмездно от муниципального образования Северский район"
A132: 466 | B132: квартира № 1 | C132: п. Черноморский, ул.Тельмана, д. 9 кв. 1 | D132: 1961 | E132: 42 | H132: 28,452.84 | I132: 28,452.84 | J132: 0.00 | K132: Администрация Черноморского городского поселения | L132: Решение Совета муниципального образования Северский район от 25.09.2008г. № 767 «О передаче муниципального жилого фонда муниципального образования Северский район в собственность Черноморского городского поселения»; Решение Совета Черноморского городского поселения Северского района от 30.10.2008г. № 236 "О принятии жилого фонда в муниципальную казну Черноморского городского поселения безвозмездно от муниципального образования Северский район"
A133: 470 | B133: квартира № 2 | C133: п. Черноморский, ул.Тельмана, д. 5 кв. 2 | D133: 1961 | E133: 42.8 | H133: 45,888.43 | I133: 19,105.01 | J133: 26,783.42 | K133: Администрация Черноморского городского поселения | L133: Решение Совета муниципального образования Северский район от 25.09.2008г. № 767 «О передаче муниципального жилого фонда муниципального образования Северский район в собственность Черноморского городского поселения»; Решение Совета Черноморского городского поселения Северского района от 30.10.2008г. № 236 "О принятии жилого фонда в муниципальную казну Черноморского городского поселения безвозмездно от муниципального образования Северский район"
A134: 476 | B134: квартира № 12 | C134: п. Черноморский, ул. Суворова, д. 40а кв. 12 | D134: 1978 | E134: 49.7 | H134: 67,006.71 | I134: 12,790.44 | J134: 54,216.27 | K134: Администрация Черноморского городского поселения | L134: Решение Совета муниципального образования Северский район от 25.09.2008г. № 767 «О передаче муниципального жилого фонда муниципального образования Северский район в собственность Черноморского городского поселения»; Решение Совета Черноморского городского поселения Северского района от 30.10.2008г. № 236 "О принятии жилого фонда в муниципальную казну Черноморского городского поселения безвозмездно от муниципального образования Северский район"
A135: 477 | B135: квартира № 4 | C135: п. Черноморский, ул. Суворова, д. 41а кв. 4 | D135: 1954 | E135: 33.5 | H135: 27,014.50 | I135: 12,503.20 | J135: 14,511.30 | K135: Администрация Черноморского городского поселения | L135: Решение Совета муниципального образования Северский район от 25.09.2008г. № 767 «О передаче муниципального жилого фонда муниципального образования Северский район в собственность Черноморского городского поселения»; Решение Совета Черноморского городского поселения Северского района от 30.10.2008г. № 236 "О принятии жилого фонда в муниципальную казну Черноморского городского поселения безвозмездно от муниципального образования Северский район"
A136: 478 | B136: квартира № 4 | C136: п. Черноморский, ул. Суворова, д. 40а кв. 4 | D136: 1978 | E136: 57.9 | H136: 78,062.14 | I136: 14,900.74 | J136: =H136-I136 -> 63,161.40 | K136: Администрация Черноморского городского поселения | L136: Решение Совета муниципального образования Северский район от 25.09.2008г. № 767 «О передаче муниципального жилого фонда муниципального образования Северский район в собственность Черноморского городского поселения»; Решение Совета Черноморского городского поселения Северского района от 30.10.2008г. № 236 "О принятии жилого фонда в муниципальную казну Черноморского городского поселения безвозмездно от муниципального образования Северский район"
A137: 480 | B137: квартира № 2 | C137: п. Черноморский, ул. Суворова, д. 39 кв. 2 | D137: 1954 | E137: 40.6 | H137: 33,798.23 | I137: 18,155.26 | J137: 15,642.97 | K137: Администрация Черноморского городского поселения | L137: Решение Совета муниципального образования Северский район от 25.09.2008г. № 767 «О передаче муниципального жилого фонда муниципального образования Северский район в собственность Черноморского городского поселения»; Решение Совета Черноморского городского поселения Северского района от 30.10.2008г. № 236 "О принятии жилого фонда в муниципальную казну Черноморского городского поселения безвозмездно от муниципального образования Северский район"
A138: 483 | B138: квартира № 2а | C138: п.Черноморский, ул.Суворова, д. 41 кв. 2а | D138: 1954 | E138: 16.8 | H138: 15,367.97 | I138: 8,255.17 | J138: 7,112.80 | K138: Администрация Черноморского городского поселения | L138: Решение Совета муниципального образования Северский район от 25.09.2008г. № 767 «О передаче муниципального жилого фонда муниципального образования Северский район в собственность Черноморского городского поселения»; Решение Совета Черноморского городского поселения Северского района от 30.10.2008г. № 236 "О принятии жилого фонда в муниципальную казну Черноморского городского поселения безвозмездно от муниципального образования Северский район"
A139: 484 | B139: квартира № 5а | C139: п.Черноморский, ул.Суворова, д. 41 кв. 5а | D139: 1954 | E139: 54.6 | H139: 49,945.89 | I139: 26,829.28 | J139: 23,116.61 | K139: Администрация Черноморского городского поселения | L139: Решение Совета муниципального образования Северский район от 25.09.2008г. № 767 «О передаче муниципального жилого фонда муниципального образования Северский район в собственность Черноморского городского поселения»; Решение Совета Черноморского городского поселения Северского района от 30.10.2008г. № 236 "О принятии жилого фонда в муниципальную казну Черноморского городского поселения безвозмездно от муниципального образования Северский район"
A140: 492 | B140: квартира № За | C140: п.Черноморский, ул.Суворова, д. 33 кв. 3а | D140: 1951 | E140: 10.8 | H140: 4,717.96 | I140: 2,678.73 | J140: 2,039.23 | K140: Администрация Черноморского городского поселения | L140: Решение Совета муниципального образования Северский район от 25.09.2008г. № 767 «О передаче муниципального жилого фонда муниципального образования Северский район в собственность Черноморского городского поселения»; Решение Совета Черноморского городского поселения Северского района от 30.10.2008г. № 236 "О принятии жилого фонда в муниципальную казну Черноморского городского поселения безвозмездно от муниципального образования Северский район"
A141: 495 | B141: квартира № 8а | C141: п.Черноморский, ул.Суворова, д. 37 кв. 8а | D141: 1953 | E141: 10.4 | H141: 6,362.50 | I141: 3,481.34 | J141: 2,881.16 | K141: Администрация Черноморского городского поселения | L141: Решение Совета муниципального образования Северский район от 25.09.2008г. № 767 «О передаче муниципального жилого фонда муниципального образования Северский район в собственность Черноморского городского поселения»; Решение Совета Черноморского городского поселения Северского района от 30.10.2008г. № 236 "О принятии жилого фонда в муниципальную казну Черноморского городского поселения безвозмездно от муниципального образования Северский район"
A142: 497 | B142: квартира № 1 | C142: п.Черноморский, ул.Суворова, д. 39 кв. 1 | D142: 1954 | E142: 51.4 | H142: 42,305.79 | I142: 22,725.23 | J142: 19,580.56 | K142: Администрация Черноморского городского поселения | L142: Решение Совета муниципального образования Северский район от 25.09.2008г. № 767 «О передаче муниципального жилого фонда муниципального образования Северский район в собственность Черноморского городского поселения»; Решение Совета Черноморского городского поселения Северского района от 30.10.2008г. № 236 "О принятии жилого фонда в муниципальную казну Черноморского городского поселения безвозмездно от муниципального образования Северский район"
A143: 498 | B143: квартира № 3 | C143: п.Черноморский, ул.Суворова, д. 39 кв. 3 | D143: 1954 | E143: 51.6 | H143: 42,470.40 | I143: 22,813.65 | J143: =H143-I143 -> 19,656.75 | K143: Администрация Черноморского городского поселения | L143: Решение Совета муниципального образования Северский район от 25.09.2008г. № 767 «О передаче муниципального жилого фонда муниципального образования Северский район в собственность Черноморского городского поселения»; Решение Совета Черноморского городского поселения Северского района от 30.10.2008г. № 236 "О принятии жилого фонда в муниципальную казну Черноморского городского поселения безвозмездно от муниципального образования Северский район"
A144: 499 | B144: квартира №14 | C144: п.Черноморский, ул.Юбилейная, 95а кв. 14 | D144: 1983 | E144: 60.3 | H144: 720,000.00 | I144: 0.00 | J144: =H144-I144 -> 720,000.00 | K144: Администрация Черноморского городского поселения | L144: Решение Совета муниципального образования Северский район от 25.09.2008г. № 767 «О передаче муниципального жилого фонда муниципального образования Северский район в собственность Черноморского городского поселения»; Решение Совета Черноморского городского поселения Северского района от 30.10.2008г. № 236 "О принятии жилого фонда в муниципальную казну Черноморского городского поселения безвозмездно от муниципального образования Северский район"
A145: 506 | B145: жилой дом | C145: п.Черноморский, ул.Комсомольская, д. 11 | D145: 2001 | E145: 57.5 | H145: 155,000.00 | I145: 0.00 | J145: =H145-I145 -> 155,000.00 | K145: Администрация Черноморского городского поселения | L145: Решение Совета муниципального образования Северский район от 25.09.2008г. № 767 «О передаче муниципального жилого фонда муниципального образования Северский район в собственность Черноморского городского поселения»; Решение Совета Черноморского городского поселения Северского района от 30.10.2008г. № 236 "О принятии жилого фонда в муниципальную казну Черноморского городского поселения безвозмездно от муниципального образования Северский район"
A146: 508 | B146: квартира №3 | C146: п.Октябрьский, ул.Горького, д. 9 к.3 | D146: 1952 | E146: 102 | H146: 160,000.00 | I146: 0.00 | J146: =H146-I146 -> 160,000.00 | K146: Администрация Черноморского городского поселения | L146: Решение Совета муниципального образования Северский район от 25.09.2008г. № 767 «О передаче муниципального жилого фонда муниципального образования Северский район в собственность Черноморского городского поселения»; Решение Совета Черноморского городского поселения Северского района от 30.10.2008г. № 236 "О принятии жилого фонда в муниципальную казну Черноморского городского поселения безвозмездно от муниципального образования Северский район"
A147: 510 | B147: жилой дом | C147: л.Октябрьский, ул. Толстого, д.17 | D147: 1958 | E147: 24.4 | H147: 67,000.00 | I147: 0.00 | J147: =H147-I147 -> 67,000.00 | K147: Администрация Черноморского городского поселения | L147: Решение Совета муниципального образования Северский район от 25.09.2008г. № 767 «О передаче муниципального жилого фонда муниципального образования Северский район в собственность Черноморского городского поселения»; Решение Совета Черноморского городского поселения Северского района от 30.10.2008г. № 236 "О принятии жилого фонда в муниципальную казну Черноморского городского поселения безвозмездно от муниципального образования Северский район"
A148: 514 | B148: квартира № 2 | C148: п.Октябрьский, ул.Горького, 6а | D148: 1931 | E148: 34.2 | H148: 3,742.23 | I148: 3,742.23 | J148: 0.00 | K148: Администрация Черноморского городского поселения | L148: Постановление главы Черноморского городского поселения Северского района от 21.05.2009г. № 136 "О принятии жилого фонда в муниципальную казну Черноморского городского поселения безвозмездно от муниципального образования Северский район"
A149: 515 | B149: квартира № 3 | C149: п.Октябрьский, ул.Горького, 6а | D149: 1931 | E149: 33.0 | H149: 3,610.92 | I149: 3,610.92 | J149: 0.00 | K149: Администрация Черноморского городского поселения | L149: Постановление главы Черноморского городского поселения Северского района от 21.05.2009г. № 136 "О принятии жилого фонда в муниципальную казну Черноморского городского поселения безвозмездно от муниципального образования Северский район"
A150: 517 | B150: квартира № 5 | C150: п.Октябрьский, ул.Горького, 6а | D150: 1931 | E150: 32.0 | H150: 3,501.50 | I150: 3,501.50 | J150: 0.00 | K150: Администрация Черноморского городского поселения | L150: Постановление главы Черноморского городского поселения Северского района от 21.05.2009г. № 136 "О принятии жилого фонда в муниципальную казну Черноморского городского поселения безвозмездно от муниципального образования Северский район"
A151: 532 | B151: квартира № 6 | C151: п.Октябрьский, ул.Горького, 16 | D151: 1963 | E151: 33.8 | H151: 8,058.35 | I151: 8,058.35 | J151: 0.00 | K151: Администрация Черноморского городского поселения | L151: Постановление главы Черноморского городского поселения Северского района от 21.05.2009г. № 136 "О принятии жилого фонда в муниципальную казну Черноморского городского поселения безвозмездно от муниципального образования Северский район"
A152: 534 | B152: квартира № 3 | C152: п.Октябрьский, ул.Горького, 18 | D152: 1932 | E152: 39.5 | H152: 8,773.27 | I152: 8,773.27 | J152: 0.00 | K152: Администрация Черноморского городского поселения | L152: Постановление главы Черноморского городского поселения Северского района от 21.05.2009г. № 136 "О принятии жилого фонда в муниципальную казну Черноморского городского поселения безвозмездно от муниципального образования Северский район"
A153: 535 | B153: квартира № 8 | C153: п.Октябрьский, ул.Горького, 18 | D153: 1932 | E153: 22.5 | H153: 4,997.43 | I153: 4,997.43 | J153: 0.00 | K153: Администрация Черноморского городского поселения | L153: Постановление главы Черноморского городского поселения Северского района от 21.05.2009г. № 136 "О принятии жилого фонда в муниципальную казну Черноморского городского поселения безвозмездно от муниципального образования Северский район"
A154: 536 | B154: квартира № 1 | C154: п.Октябрьский, ул.Пушкина, 1 | D154: 1966 | E154: 32.8 | H154: 5,347.35 | I154: 3,392.90 | J154: =H154-I154 -> 1,954.45 | K154: Администрация Черноморского городского поселения | L154: Постановление главы Черноморского городского поселения Северского района от 21.05.2009г. № 136 "О принятии жилого фонда в муниципальную казну Черноморского городского поселения безвозмездно от муниципального образования Северский район"
A155: 540 | B155: квартира № 4 | C155: п.Октябрьский, ул.Пушкина, 15 | D155: 1990 | E155: 49.7 | H155: 28,452.79 | I155: 6,788.36 | J155: =H155-I155 -> 21,664.43 | K155: Администрация Черноморского городского поселения | L155: Постановление главы Черноморского городского поселения Северского района от 21.05.2009г. № 136 "О принятии жилого фонда в муниципальную казну Черноморского городского поселения безвозмездно от муниципального образования Северский район"
A156: 554 | B156: квартира № 8 | C156: п.Черноморский, ул.Кавказская, 15 | D156: 1969 | E156: 42.1 | H156: 36,361.82 | I156: 14,229.60 | J156: =H156-I156 -> 22,132.22 | K156: Администрация Черноморского городского поселения | L156: Постановление главы Черноморского городского поселения Северского района от 21.05.2009г. № 136 "О принятии жилого фонда в муниципальную казну Черноморского городского поселения безвозмездно от муниципального образования Северский район"
A157: 568 | B157: квартира № 2 | C157: п.Черноморский, ул.Суворова, 40 а | D157: 1978 | E157: 57.6 | H157: 77,657.68 | I157: 11,231.87 | J157: =H157-I157 -> 66,425.81 | K157: Администрация Черноморского городского поселения | L157: Постановление главы Черноморского городского поселения Северского района от 21.05.2009г. № 136 "О принятии жилого фонда в муниципальную казну Черноморского городского поселения безвозмездно от муниципального образования Северский район"
A158: 574 | B158: квартира № 17 | C158: п.Черноморский, ул.Юбилейная, 95 а | D158: 1983 | E158: 62.6 | H158: 64,504.00 | I158: 10,087.75 | J158: =H158-I158 -> 54,416.25 | K158: Администрация Черноморского городского поселения | L158: Постановление главы Черноморского городского поселения Северского района от 21.05.2009г. № 136 "О принятии жилого фонда в муниципальную казну Черноморского городского поселения безвозмездно от муниципального образования Северский район"
A159: 577 | B159: квартира № 6 | C159: Холмская подстанция, жилой дом № 1 | D159: 1950 | E159: 46.1 | H159: 27,120.21 | I159: 27,120.21 | J159: 0.00 | K159: Администрация Черноморского городского поселения | L159: Постановление главы Черноморского городского поселения Северского района от 21.05.2009г. № 136 "О принятии жилого фонда в муниципальную казну Черноморского городского поселения безвозмездно от муниципального образования Северский район"
A160: 579 | B160: Квартира № 16 | C160: п.Октябрьский, ул.Пушкина, 1 | E160: 32.6 | H160: 55,084.86 | I160: 5,377.01 | J160: =H160-I160 -> 49,707.85 | K160: Администрация Черноморского городского поселения | L160: Закон Краснодарского края от 13.11.2006г. № 1112-КЗ "О разграничении имущества, находящегося в собственности муниципального образования Северский район, между вновь образованными городскими, сельскими поселениями и муниципальным образованием Северский район, в состав которого они входят"
A161: 582 | B161: квартира № 13 | C161: п.Октябрьский, ул.Пушкина, 1 | D161: 1966 | E161: 56.1 | H161: 9,145.91 | I161: 5,803.06 | J161: =H161-I161 -> 3,342.85 | K161: Администрация Черноморского городского поселения | L161: Постановление главы Черноморского городского поселения Северского района от 06.07.2009г. № 172 "О принятии жилого фонда в муниципальную казну Чернморского городского поселения безвозмездно от муниципального образования Северский район"
A162: 583 | B162: квартира № 16 | C162: п.Октябрьский, ул.Пушкина, 1 | D162: 1966 | E162: 32.6 | H162: 5,314.74 | I162: 3,372.19 | J162: =H162-I162 -> 1,942.55 | K162: Администрация Черноморского городского поселения | L162: Постановление главы Черноморского городского поселения Северского района от 06.07.2009г. № 172 "О принятии жилого фонда в муниципальную казну Чернморского городского поселения безвозмездно от муниципального образования Северский район"
A163: 584 | B163: квартира № 34 | C163: п.Октябрьский, ул.Пушкина, 34 | D163: 1973 | E163: 28.1 | H163: 9,382.32 | I163: 4,367.47 | J163: =H163-I163 -> 5,014.85 | K163: Администрация Черноморского городского поселения | L163: Постановление главы Черноморского городского поселения Северского района от 06.07.2009г. № 172 "О принятии жилого фонда в муниципальную казну Чернморского городского поселения безвозмездно от муниципального образования Северский район"
A164: 585 | B164: квартира № 1 | C164: п.Черноморкий, ул.Мира, 16 | D164: 1950 | E164: 25.4 | H164: 1,595.80 | I164: 1,595.80 | J164: =H164-I164 -> 0.00 | K164: Администрация Черноморского городского поселения | L164: Постановление главы Черноморского городского поселения Северского района от 06.07.2009г. № 172 "О принятии жилого фонда в муниципальную казну Чернморского городского поселения безвозмездно от муниципального образования Северский район"
A165: 871 | B165: квартира №2 | C165: пгт.Черноморский ул.Суворова д.4 кв 2 общая площадь 28,4 м2 | D165: 2012 | E165: 28.4 | G165: 23:26:1103018:156 | H165: 852,000.00 | I165: 0.00 | J165: 852,000.00 | K165: Администрация Черноморского городского поселения | L165: ПОСТАНОВЛЕНИЕ №2 ОТ 09.01.2013Г. О ПРИНЯТИИ В СОБСТВЕННОСТЬ ЧЕРНОМОРСКОГО ГОРОДСКОГО ПОСЕЛЕНИЯ СЕВЕРСКОГО РАЙОНА ЖИЛИЩНОГО ФОНДА,ПРИОБРИТЕННОГО В ХОДЕ РЕАЛИЗАЦИИ АДРЕСНОЙ ПРОГРАММЫ ПО ПЕРЕСЕЛЕНИЮ ГРАЖДАН ИЗ АВАРИЙНОГО ЖИЛИЩНОГО ФОНДА
A166: 902 | B166: квартира №6 | C166: пгт.Черноморский ул.Пушкина дом 4 кв.6 общая площадь 82,5 кв.м, жилая 59,2 м2 | E166: 82.5 | G166: 23:26:1103022:0:11/3 | K166: Администрация Черноморского городского поселения | L166: СОГЛАШЕНИЕ №4 О ПРЕДОСТАВЛЕНИИ ЖИЛЫХ ПОМЕЩЕНИЙ В СОБСТВЕННОСТЬ ГРАЖДАНАМ, ВЗАМЕН ИЗЫМАЕМЫХ У СОБСТВЕННИКОВ АВАРИЙНЫХ ЖИЛЫХ ПОМЕЩЕНИЙ ОТ 10.01.2013 г.
A167: 903 | B167: квартира №5 | C167: пгт.Чернморский ул.Пушкина дом 4 кв,5 общая площадь 40,3 кв.м., жилая 25,2 м2 | E167: 40.3 | G167: 23-23-17/017/2008-060 | K167: Администрация Черноморского городского поселения | L167: СОГЛАШЕНИЕ №27 О ПРЕДОСТАВЛЕНИИ ЖИЛЫХ ПОМЕЩЕНИЙ В СОБСТВЕННОСТЬ ГРАЖДАНАМ, ВЗАМЕН ИЗЫМАЕМЫХ У СОБСТВЕННИКОВ АВАРИЙНЫХ ЖИЛЫХ ПОМЕЩЕНИЙ ОТ 10 ЯНВАРЯ 2013 Г.
A168: 905 | B168: квартира № 16 | C168: пгт.Черноморский ул.Суворова дом 4 кв. 16 общая площадь38,1 кв.м, | E168: 38.1 | K168: Администрация Черноморского городского поселения | L168: ПОСТАНОВЛЕНИЕ №2 ОТ 09.01.2013Г. О ПРИНЯТИИ В СОБСТВЕННОСТЬ ЧЕРНОМОРСКОГО ГОРОДСКОГО ПОСЕЛЕНИЯ СЕВЕРСКОГО РАЙОНА ЖИЛИЩНОГО ФОНДА,ПРИОБРИТЕННОГО В ХОДЕ РЕАЛИЗАЦИИ АДРЕСНОЙ ПРОГРАММЫ ПО ПЕРЕСЕЛЕНИЮ ГРАЖДАН ИЗ АВАРИЙНОГО ЖИЛИЩНОГО ФОНДА
A169: 907 | B169: квартира № 31 | C169: пгт.Черноморский ул. Суворова дом 4 кв. 31 общая площадь 26,5 кв.м, | E169: 26.5 | K169: Администрация Черноморского городского поселения | L169: ПОСТАНОВЛЕНИЕ №2 ОТ 09.01.2013Г. О ПРИНЯТИИ В СОБСТВЕННОСТЬ ЧЕРНОМОРСКОГО ГОРОДСКОГО ПОСЕЛЕНИЯ СЕВЕРСКОГО РАЙОНА ЖИЛИЩНОГО ФОНДА,ПРИОБРИТЕННОГО В ХОДЕ РЕАЛИЗАЦИИ АДРЕСНОЙ ПРОГРАММЫ ПО ПЕРЕСЕЛЕНИЮ ГРАЖДАН ИЗ АВАРИЙНОГО ЖИЛИЩНОГО ФОНДА
A170: 916 | B170: квартира №4 | C170: п.Черноморский ул.Пушкина, д.4 кв.4 общая площадь 35,5 кв м жилая 25,1кв м | E170: 35.5 | G170: 23-23-17/018/2012-346 | K170: Администрация Черноморского городского поселения | L170: СОГЛАШЕНИЕ №14 О ПРЕДОСТВЛЕНИИ ЖИЛЫХ ПОМЕЩЕНИЙ В СОБСТВЕННОСТЬ ГРАЖДАНАМ,ВЗАМЕН ИЗЫМАЕМЫХ У СОБСТВЕННИКОВ АВАРИЙНЫХ ЖИЛЫХ ПОМЕЩЕНИЙ от 10 января 2013 г.
A171: 924 | B171: квартира №7 | C171: п.Черноморский ул.Пушкина, д.4 кв.7 общая площадь 42,7 кв м жилая 15,0 кв м | E171: 42.7 | G171: 23:26:1103022:0:11/1 | K171: Администрация Черноморского городского поселения | L171: СОГЛАШЕНИЕ №12 О ПРЕДОСТАВЛЕНИИ ЖИЛЫХ ПОМЕЩЕНИЙ В СОБСТВЕННОСТЬ ГРАЖДАНАМ,ВЗАМЕН ИЗЫМАЕМЫХ У СОБСТВЕННИКОВ АВАРИЙНЫХ ЖИЛЫХ ПОМЕЩЕНИЙ от 10 января 2013г
A172: 928 | B172: квартира №32 | C172: п.Черноморский ул.Суворова 4 кв 32 общая площадь 36,3 кв м | E172: 36.3 | K172: Администрация Черноморского городского поселения | L172: акт ПРИЕМА-ПЕРЕДАЧИ квартиры от 19.12.2012 г.
A173: =#REF!+1 ->  | B173: квартира №16 | C173: Краснодарский край,Северский район, пгт.Афипский, ул.50 лет Октября, 102, площадь 35,3 кв.м | D173: 2015 | E173: 35,3 | H173: 1,088,480.00 | I173: 0.00 | J173: 1,088,480.00 | K173: Администрация Черноморского городского поселения | L173: решение Совета Черноморского городского поселения Северского района "О включении в реестр муниципальной казны Черноморского городского поселения Северского района" от13.11.2015 №91
A174: =A173+1 ->  | B174: квартира №90 | C174: Краснодарский край,Северский район, пгт.Афипский, ул.50 лет Октября, 102, площадь 37,6 кв.м | D174: 2015 | E174: 37,6 | H174: 1,224,540.00 | I174: 0.00 | J174: 1,224,540.00 | K174: Администрация Черноморского городского поселения | L174: решение Совета Черноморского городского поселения Северского района "О включении в реестр муниципальной казны Черноморского городского поселения Северского района" от13.11.2015 №91
A175: =#REF!+1 ->  | B175: квартира №150 | C175: Краснодарский край,Северский район, пгт.Афипский, ул.50 лет Октября, 102, площадь 54,3 кв.м | D175: 2015 | E175: 54,3 | H175: 1,489,355.58 | I175: 0.00 | J175: 1,489,355.58 | K175: Администрация Черноморского городского поселения | L175: решение Совета Черноморского городского поселения Северского района "О включении в реестр муниципальной казны Черноморского городского поселения Северского района" от13.11.2015 №91
A176: =#REF!+1 ->  | B176: квартира №173 | C176: Краснодарский край,Северский район, пгт.Афипский, ул.50 лет Октября, 102, площадь 37,5 кв.м | D176: 2015 | E176: 37,5 | H176: 1,039,539.85 | I176: 0.00 | J176: 1,039,539.85 | K176: Администрация Черноморского городского поселения | L176: решение Совета Черноморского городского поселения Северского района "О включении в реестр муниципальной казны Черноморского городского поселения Северского района" от13.11.2015 №91
A177: 1003 | B177: квартира №138 | C177: Краснодарский край,Северский район, пгт.Афипский, ул.50 лет Октября, 102, площадь 37,9 кв.м | D177: 2015 | E177: 37,9 | H177: 1,267,485.21 | I177: 0.00 | J177: 1,267,485.21 | K177: Администрация Черноморского городского поселения | L177: решение Совета Черноморского городского поселения Северского района "О включении в реестр муниципальной казны Черноморского городского поселения Северского района" от13.11.2015 №91
A178: 1006 | B178: квартира №13 | C178: Краснодарский край Северский район, пгт Черноморский, ул. Горького ,д.3, кв.13, 25,4 кв.м | D178: 1950 | E178: 25,4 | K178: Администрация Черноморского городского поселения | L178: Решение Совета Черноморского городского поселения Северского района от 17.12.2015 №99 «О включении в реестр муниципальной казны Черноморского городского поселения Северского района жилого фонда»
A179: 1007 | B179: квартира №5 | C179: Краснодарский край северский район, пгт Чепноморский, ул. Суворова ,д.36, кв.5, 44,3 кв.м | D179: 1950 | E179: 44,3 | K179: Администрация Черноморского городского поселения | L179: Решение Совета Черноморского городского поселения Северского района от 17.12.2015 №99 «О включении в реестр муниципальной казны Черноморского городского поселения Северского района жилого фонда»
A180: 1018 | B180: Квартира № 1 | C180: Краснодарский край Северский район пгт. Черноморский ул. Пушкина д.4 кв 1 | E180: 39.8 | K180: Администрация Черноморского городского поселения | L180: Решение Совета Черноморского городского поселения Северского района от 21.04.2016 г. № 134 «О включении в реестр муниципальной казны Черноморского городского поселения Северского района»
A181: 1021 | B181: квартира № 2 | C181: Краснодарский край Северский район пгт. Черноморский ул. Пушкина д.4 кв. 2 | E181: 34 | G181: 23:26:1103022:464 | K181: Администрация Черноморского городского поселения | L181: Решение Совета Черноморского городского поселения Северского района от 26.05.2016 г. № 144 «О включении в реестр муниципальной казны Черноморского городского поселения Северского района»
A182: 1027 | B182: квартира № 18 | C182: Краснодарский край Северский район пгт. Черноморский ул. Комсомольская, д. 2 | D182: 2016 | E182: 38 | G182: 23:26:1103033:383 | H182: 1,235,899.95 | I182: 0.00 | J182: 1,235,899.95 | K182: Администрация Черноморского городского поселения | L182: Решение Совета Черноморского городского поселения Северского района от 23.06.2016 г. № 152 "О включении в реестр муниципальной казны Черноморского городского поселения Северского района жилого фонда"
A183: 1028 | B183: квартира № 13 | C183: Краснодарский край Северский район пгт. Черноморский ул. Комсомольская, д. 2 | D183: 2016 | E183: 53.15 | G183: 23:26:1103033:378 | H183: 1,728,633.70 | I183: 0.00 | J183: 1,728,633.70 | K183: Администрация Черноморского городского поселения | L183: Решение Совета Черноморского городского поселения Северского района от 23.06.2016 г. № 152 "О включении в реестр муниципальной казны Черноморского городского поселения Северского района жилого фонда"
A184: 1033 | B184: квартира № 6 | C184: Краснодарский край Северский район пгт. Черноморский ул. Комсомольская, д. 2 | D184: 2016 | E184: 58.33 | G184: 23:26:1103033:371 | H184: 1,870,460.95 | I184: 0.00 | J184: 1,870,460.95 | K184: Администрация Черноморского городского поселения | L184: Решение Совета Черноморского городского поселения Северского района от 23.06.2016 г. № 152 "О включении в реестр муниципальной казны Черноморского городского поселения Северского района жилого фонда"
A185: 1036 | B185: квартира № 1 | C185: Краснодарский край Северский район пгт. Черноморский ул. Комсомольская, д. 2 | D185: 2016 | E185: 58.33 | G185: 23:26:1103033:400 | H185: 1,870,460.95 | I185: 0.00 | J185: 1,870,460.95 | K185: Администрация Черноморского городского поселения | L185: Решение Совета Черноморского городского поселения Северского района от 23.06.2016 г. № 152 "О включении в реестр муниципальной казны Черноморского городского поселения Северского района жилого фонда"
A186: 1039 | B186: квартира № 17 | C186: Краснодарский край Северский район пгт. Черноморский ул. Комсомольская, д. 2 | D186: 2016 | E186: 54.44 | G186: 23:26:1103033:382 | H186: 1,745,720.79 | I186: 0.00 | J186: 1,745,720.79 | K186: Администрация Черноморского городского поселения | L186: Решение Совета Черноморского городского поселения Северского района от 23.06.2016 г. № 152 "О включении в реестр муниципальной казны Черноморского городского поселения Северского района жилого фонда"
A187: 1040 | B187: квартира № 22 | C187: Краснодарский край Северский район пгт. Черноморский ул. Комсомольская, д. 2 | D187: 2016 | E187: 54.52 | G187: 23:26:1103033:387 | H187: 1,748,286.14 | I187: 0.00 | J187: 1,748,286.14 | K187: Администрация Черноморского городского поселения | L187: Решение Совета Черноморского городского поселения Северского района от 23.06.2016 г. № 152 "О включении в реестр муниципальной казны Черноморского городского поселения Северского района жилого фонда"
A188: 1047 | B188: квартира № 38 | C188: Краснодарский край Северский район пгт.Афипский ул. 50 лет Октября, д. 102 | D188: 2016 | E188: 61.5 | H188: 1,692,246.25 | I188: 0.00 | J188: 1,692,246.25 | K188: Администрация Черноморского городского поселения | L188: Решение Совета Черноморского городского поселения Северского района от 13.10.2016 № 173 "О включении в реестр муниципальной казны Черноморского городского поселения Северского района жилого фонда"
A189: 1057 | B189: земельный участок-земли населенных пунктов – объекты инженерно-технического обеспечения | C189: Краснодарский край Северский район пгт. Черноморский,34 квартал | E189: 306 | G189: 23:26:1103006:298 | K189: Администрация Черноморского городского поселения | L189: Решение Совета Черноморского городского поселения Северского района от 10.11.2016 № 178 "О включении в реестр муниципальной собственности Черноморского городского поселения Северского района имущества"
A190: 1058 | B190: земельный участок-земли сельхоз.назначения – для садоводства | C190: Краснодарский край Северский район пгт. Черноморский, с/т Нефтянник, № 398 | E190: 471 | G190: 23:26:1103025:452 | K190: Администрация Черноморского городского поселения | L190: Решение Совета Черноморского городского поселения Северского района от 10.11.2016 № 178 "О включении в реестр муниципальной собственности Черноморского городского поселения Северского района имущества"
A191: 1059 | B191: земельный участок-земли населенных пунктов-объекты отдыха и туризма | C191: Краснодарский край Северский район пгт. Черноморский, (Северо-восточная окраина) | E191: 94749 | G191: 23:26:1101000:250 | K191: Администрация Черноморского городского поселения | L191: Решение Совета Черноморского городского поселения Северского района от 10.11.2016 № 178 "О включении в реестр муниципальной собственности Черноморского городского поселения Северского района имущества"
A192: 1060 | B192: земельный участок-земли населенных пунктов-для эксплуатации здания администрации | C192: Краснодарский край Северский район пгт. Черноморский, ул. Дзержинского,24 | E192: 2446 | G192: 23:26:1103022:550 | K192: Администрация Черноморского городского поселения | L192: Решение Совета Черноморского городского поселения Северского района от 10.11.2016 № 178 "О включении в реестр муниципальной собственности Черноморского городского поселения Северского района имущества"
A193: 1061 | B193: земельный участок-земли сельхоз.назначения – для садоводства-пашня | C193: Краснодарский край Северский район пгт. Черноморский с/т Машиностроитель, № 50 | E193: 600 | G193: 23:26:1105005:42 | K193: Администрация Черноморского городского поселения | L193: Решение Совета Черноморского городского поселения Северского района от 10.11.2016 № 178 "О включении в реестр муниципальной собственности Черноморского городского поселения Северского района имущества"
A194: 1062 | B194: земельный участок-земли сельхоз.назначения – для садоводства-пашня | C194: Краснодарский край Северский район пгт. Черноморский с/т Машиностроитель, № 52 | E194: 600 | G194: 23:26:1105005:44 | K194: Администрация Черноморского городского поселения | L194: Решение Совета Черноморского городского поселения Северского района от 10.11.2016 № 178 "О включении в реестр муниципальной собственности Черноморского городского поселения Северского района имущества"
A195: 1063 | B195: земельный участок-земли сельхоз.назначения – для садоводства | C195: Краснодасркий край Северский район п. Черноморский с/т Нефтяник уч.228 Б | E195: 500 | G195: 23:26:1103025 | K195: Администрация Черноморского городского поселения | L195: Решение Совета Черноморского городского поселения Северского района от 10.11.2016 № 178 "О включении в реестр муниципальной собственности Черноморского городского поселения Северского района имущества"
A196: 1064 | B196: земельный участок-земли сельхоз.назначения – для садоводства | C196: Краснодарский край Северский район п. Черноморский, с/т Нефтяник, уч. 178 | E196: 605 | G196: 23:26:1103025 | K196: Администрация Черноморского городского поселения | L196: Решение Совета Черноморского городского поселения Северского района от 10.11.2016 № 178 "О включении в реестр муниципальной собственности Черноморского городского поселения Северского района имущества"
A197: 1065 | B197: земельный участок-земли сельхоз.назначения – для садоводства | C197: Краснодарский край Северский район п. Черноморский, с/т Нефтяник, уч. 165 | E197: 683 | G197: 23:26:1103025 | K197: Администрация Черноморского городского поселения | L197: Решение Совета Черноморского городского поселения Северского района от 10.11.2016 № 178 "О включении в реестр муниципальной собственности Черноморского городского поселения Северского района имущества"
A198: 1066 | B198: земельный участок | C198: Краснодарский край Северский район п. Октябрьский ул. Кубанская, 4 | E198: 1500 | G198: 23:26:1101005:139 | K198: Администрация Черноморского городского поселения | L198: Решение Совета Черноморского городского поселения Северского района от 10.11.2016 № 178 "О включении в реестр муниципальной собственности Черноморского городского поселения Северского района имущества"
A199: 1071 | B199: земельный участок 1/8 доля | C199: Краснодарский край Северский район пгт. Черноморский ул. Пушкина, д. № 3 | E199: 2268 | G199: 23:26:1103022:239 | K199: Администрация Черноморского городского поселения | L199: Решение Совета Черноморского городского поселения Северского района от 24.11.2016 года № 185 "О включении в реестр муниципальной собственности Черноморского городского поселения Северского района имущества"
A200: 1087 | B200: земельный участок-земли населенных пунктов-малоэтажная жилая застройка индивидуальное жилое строительство; размещение дачных домов и садовых домов | C200: Краснодарский край Северский район п. Октябрьский ул. Толстого, д. № 17 | E200: 886 | G200: 23:26:1101005:1553 | K200: Администрация Черноморского городского поселения | L200: Решение Совета Черноморского городского поселения Северского района от15.12.2016 № 197 "О включении в реестр муниципальной собственности Черноморского городского поселения Северского района имущества"
A201: 1088 | B201: земельный участок-земли сельхоз.назначения – для садоводства | C201: Краснодарский край Северский район п. Черноморский с/т Нефтяник,337 | E201: 908 | G201: 23:26:1103025:334 | K201: Администрация Черноморского городского поселения | L201: Решение Совета Черноморского городского поселения Северского района от15.12.2016 № 197 "О включении в реестр муниципальной собственности Черноморского городского поселения Северского района имущества"
A202: 1093 | B202: нежилое помещение № 1 | C202: Краснодарский край Северский район п.Октябрьский, ул. Горького, дом № 3 | D202: 1949 | E202: 51.4 | G202: 23:26:1101005:1072 | K202: Администрация Черноморского городского поселения | L202: Решение Совета Черноморского городского поселения Северского района от 16.02.2017 № 213 "О включении в реестр муниципальной собственности Черноморского городского поселения Северского района имущества"
A203: 1094 | B203: нежилое помещение № 3 | C203: Краснодарский край Северский район п.Октябрьский, ул. Горького, дом № 3 | D203: 1949 | E203: 26.9 | G203: 23:26:1101005:1379 | K203: Администрация Черноморского городского поселения | L203: Решение Совета Черноморского городского поселения Северского района от 16.02.2017 № 213 "О включении в реестр муниципальной собственности Черноморского городского поселения Северского района имущества"
... 576 more rows

Sheet Раздел 2
A1: РЕЕСТР
A2: муниципальной собственности Черноморского городского поселения Северского района
A3: Раздел 2 Муниципальное движимое имущество
A4: № п/п | B4: Наименование движимого имущества | C4: Год ввода | D4: Инвентарный номер движимого имущества | E4: Сведения о балансовой стоимости движимого имущества | F4: Сведения о начисленной аммортизации | G4: Сведения об остаточной стоимости движимого имущества, руб. | H4: Сведения о правообладателе муниципального движимого имущества | I4: Реквизиты документов - оснований возникновения (прекращения) права муниципальной собственности на движимое имущество | J4: Сведения об установленных в отношении муниципального движимого имущества ограничениях (обременениях) с указанием основания и даты их возникновения и прекращения
A5: 1 | B5: 2 | C5: 3 | D5: 4 | E5: 5 | F5: 6 | G5: 7 | H5: 8 | I5: 9 | J5: 10
A6: 4 | B6: Автобус "Кубань"п.Черноморский, ул.Дзержинского, 24 гос.номер 42-05 ККЮ, двигатель № 53658, шасси № 1374726 | C6: 1992 | D6: 1101050013 | E6: 146,690.76 | F6: 146,690.76 | G6: 0.00 | H6: Администрация Черноморского городского поселения. По договору передано Спортивному клубу "Черноморец" в безвозмездное пользование. | I6: Закон Краснодарского края от 13.11.2006г. № 1112-КЗ "О разграничении имущества, находящегося в собственности муниципального образования Северский район, между вновь образованными городскими, сельскими поселениями и муниципальным образованием Северский район, в состав которого они входят"
A7: 108 | B7: Автомобиль ГАЗ 31209 О384МВ 93 | C7: 2008 | D7: 1101051017 | E7: 5,000.00 | F7: 5,000.00 | G7: 0.00 | H7: Администрация Черноморского городского поселения | I7: Закон Краснодарского края от 13.11.2006г. № 1112-КЗ "О разграничении имущества, находящегося в собственности муниципального образования Северский район, между вновь образованными городскими, сельскими поселениями и муниципальным образованием северский рай
A8: 109 | B8: Автомобиль ГАЗ 33061 О346МВ 93 | C8: 2008 | D8: 1101050012 | E8: 8,000.00 | F8: 8,000.00 | G8: 0.00 | H8: Администрация Черноморского городского поселения | I8: Закон Краснодарского края от 13.11.2006г. № 1112-КЗ "О разграничении имущества, находящегося в собственности муниципального образования Северский район, между вновь образованными городскими, сельскими поселениями и муниципальным образованием северский рай
A9: 110 | B9: Автомобиль ГАЗ 330700 О356МВ 93 | C9: 2008 | D9: 1101050117 | E9: 8,000.00 | F9: 8,000.00 | G9: 0.00 | H9: Администрация Черноморского городского поселения | I9: Закон Краснодарского края от 13.11.2006г. № 1112-КЗ "О разграничении имущества, находящегося в собственности муниципального образования Северский район, между вновь образованными городскими, сельскими поселениями и муниципальным образованием северский рай
A10: 113 | B10: Автомобиль ГАЗ 53А О341МВ 93 | C10: 2008 | D10: 1101050009 | E10: 3,000.00 | F10: 3,000.00 | G10: 0.00 | H10: Администрация Черноморского городского поселения | I10: Закон Краснодарского края от 13.11.2006г. № 1112-КЗ "О разграничении имущества, находящегося в собственности муниципального образования Северский район, между вновь образованными городскими, сельскими поселениями и муниципальным образованием северский рай
A11: 114 | B11: Автомобиль ГАЗ 53А О366/0355МВ 93 | C11: 2008 | D11: 1101050011 | E11: 4,500.00 | F11: 4,500.00 | G11: 0.00 | H11: Администрация Черноморского городского поселения | I11: Закон Краснодарского края от 13.11.2006г. № 1112-КЗ "О разграничении имущества, находящегося в собственности муниципального образования Северский район, между вновь образованными городскими, сельскими поселениями и муниципальным образованием северский рай
A12: 115 | B12: Автомобиль КАВЗ 3270 О338МВ 93 | C12: 2008 | D12: 1101050016 | E12: 5,000.00 | F12: 5,000.00 | G12: 0.00 | H12: Администрация Черноморского городского поселения | I12: Закон Краснодарского края от 13.11.2006г. № 1112-КЗ "О разграничении имущества, находящегося в собственности муниципального образования Северский район, между вновь образованными городскими, сельскими поселениями и муниципальным образованием северский рай
A13: 116 | B13: Прицеп 2ПТС-4 УК 0602 23 | C13: 2008 | D13: 1101050029 | E13: 92,158.00 | F13: 92,158.00 | G13: 0.00 | H13: Администрация Черноморского городского поселения (Концессионное соглашение от 17.09.2012 г. № 04/22-12 с ООО "Северская саночистка") | I13: Закон Краснодарского края от 13.11.2006г. № 1112-КЗ "О разграничении имущества, находящегося в собственности муниципального образования Северский район, между вновь образованными городскими, сельскими поселениями и муниципальным образованием северский рай
A14: 117 | B14: Прицеп 2ПТС-4 УК 0601 23 | C14: 2008 | D14: 1101050030 | E14: 5,180.00 | F14: 5,180.00 | G14: 0.00 | H14: Администрация Черноморского городского поселения | I14: Закон Краснодарского края от 13.11.2006г. № 1112-КЗ "О разграничении имущества, находящегося в собственности муниципального образования Северский район, между вновь образованными городскими, сельскими поселениями и муниципальным образованием северский рай
A15: 118 | B15: Самоходное шасси Т - 16М УК 0607 23 | C15: 2008 | D15: 1101050026 | E15: 3,000.00 | F15: 3,000.00 | G15: 0.00 | H15: Администрация Черноморского городского поселения | I15: Закон Краснодарского края от 13.11.2006г. № 1112-КЗ "О разграничении имущества, находящегося в собственности муниципального образования Северский район, между вновь образованными городскими, сельскими поселениями и муниципальным образованием Северский район
A16: 119 | B16: Трактор Т-40 АМ УК 0605 23 | C16: 2008 | D16: 1101050024 | E16: 6,000.00 | F16: 6,000.00 | G16: 0.00 | H16: Администрация Черноморского городского поселения | I16: Закон Краснодарского края от 13.11.2006г. № 1112-КЗ "О разграничении имущества, находящегося в собственности муниципального образования Северский район, между вновь образованными городскими, сельскими поселениями и муниципальным образованием северский рай
A17: 120 | B17: Трактор Т-40 АМ УК 0604 23 | C17: 2008 | D17: 1101050017 | E17: 8,000.00 | F17: 8,000.00 | G17: 0.00 | H17: Администрация Черноморского городского поселения | I17: Закон Краснодарского края от 13.11.2006г. № 1112-КЗ "О разграничении имущества, находящегося в собственности муниципального образования Северский район, между вновь образованными городскими, сельскими поселениями и муниципальным образованием северский рай
A18: 121 | B18: Автомобиль УАЗ 3303 О332МВ 93 | C18: 1980 | D18: 1101050014 | E18: 8,000.00 | F18: 8,000.00 | G18: 0.00 | H18: Администрация Черноморского городского поселения | I18: Закон Краснодарского края от 13.11.2006г. № 1112-КЗ "О разграничении имущества, находящегося в собственности муниципального образования Северский район, между вновь образованными городскими, сельскими поселениями и муниципальным образованием северский рай
A19: 123 | B19: Автомобиль УАЗ 3741 О361МВ 94 | C19: 2008 | D19: 1101050013 | E19: 3,000.00 | F19: 3,000.00 | G19: 0.00 | H19: Администрация Черноморского городского поселения (Концессионное соглашение с ООО "Тепловые сети" от 17.09.2012 г. № 04/21-12) | I19: Закон Краснодарского края от 13.11.2006г. № 1112-КЗ "О разграничении имущества, находящегося в собственности муниципального образования Северский район, между вновь образованными городскими, сельскими поселениями и муниципальным образованием Северский район
A20: 155 | B20: Автомобиль LADA 211440 А 843 СУ п.Черноморский Дзержинского,24 | C20: 2010 | D20: 1101052389 | E20: 273,900.00 | F20: 273,900.00 | G20: 0.00 | H20: Администрация Черноморского городского поселения (МКУ "УОДОМСУ Черноморского городского поселения" постановление №29 от 23.01.2015 "О передаче муниципального имущества в оперативное управление МКУ "УОДОМСУ Черноморского городского поселения) | I20: Распоряжение главы № 82-р от 15.04.2010 г "О постановке транспортного средства на баланс администрации Черноморского городского поселения Северского района"
A21: 467 | B21: Автомобиль ГАЗ 3307 (мусоровоз) п.Черноморский, гос.номер. К 238 ВУ 93, 1999 год выпуска, двигатель № Х1005235, шасси № Х079774 | E21: 35,000.00 | F21: 35,000.00 | G21: 0.00 | H21: Администрация Черноморского городского поселения | I21: Закон Краснодарского края от 13.11.2006г. № 1112-КЗ "О разграничении имущества, находящегося в собственности муниципального образования Северский район, между вновь образованными городскими, сельскими поселениями и муниципальным образованием Северский район, в состав которого они входят"
A22: 749 | B22: Автомобиль ИЖ-2715 B1753 (гос.номер Т 609 ЕМ 23, двигатель 6557064, шасси 0323457) 2007г. | C22: 2007 | E22: 19,321.00 | F22: 19,321.00 | G22: 0.00 | H22: Администрация Черноморского городского поселения | I22: Постановление главы муниципального образования Северский район от 20.03.2008г. № 774 "Об изъятии автомобиля ИЖ-2715 госномер Т 609 ЕМ 23 из хозяйственного ведения МУП "Бытсервис" и передачи безвозмездно в собственность Черноморского городского поселения"
A23: 760 | B23: Автомобиль ГАЗ КО - 440 - 2 мусоровоз Р925ЕЕ 93 | C23: 2005 | D23: 3101050114 | E23: 519,800.00 | F23: 519,800.00 | G23: 0.00 | H23: Администрация Черноморского городского поселения (Концессионное соглашение от 17.09.2012 г. № 04/22-12 с ООО "Северская саночистка") | I23: Справка "Перечень объектов основных средств находящихся на балансе администрации Черноморского городского поселения по состоянию на 01.01.2009года подлежащих переносу в состав имущества казны Черноморского городского поселения Северского района"
A24: 761 | B24: Прицеп 2ПТС-4М УК 0603 23 | C24: 2008 | D24: 1101050028 | E24: 1,000.00 | F24: 1,000.00 | G24: 0.00 | H24: Администрация Черноморского городского поселения (Концессионное соглашение от 17.09.2012 г. № 04/22-12 с ООО "Северская саночистка") | I24: Справка "Перечень объектов основных средств находящихся на балансе администрации Черноморского городского поселения по состоянию на 01.01.2009года подлежащих переносу в состав имущества казны Черноморского городского поселения Северского района"
A25: 762 | B25: ГАЗ 5312 О337МВ 93 | C25: 2008 | D25: 1101050101 | E25: 50,000.00 | F25: 50,000.00 | G25: 0.00 | H25: Администрация Черноморского городского поселения (МКУ "УОДОМСУ Черноморского городского поселения" постановление № 55 от 12.02.2015 "О передаче муниципального имущества в оперативное управление МКУ "УОДОМСУ Черноморского городского поселения) | I25: Справка "Перечень объектов основных средств находящихся на балансе администрации Черноморского городского поселения по состоянию на 01.01.2009года подлежащих переносу в состав имущества казны Черноморского городского поселения Северского района"
A26: 763 | B26: РАФ 22038 О336МВ 93 | C26: 2008 | D26: 1101050015 | E26: 15,000.00 | F26: 15,000.00 | G26: 0.00 | H26: Администрация Черноморского городского поселения | I26: Справка "Перечень объектов основных средств находящихся на балансе администрации Черноморского городского поселения по состоянию на 01.01.2009года подлежащих переносу в состав имущества казны Черноморского городского поселения Северского района"
A27: 764 | B27: Эксковатор ЭО-2621 на базе ЮМЗ-6 УК0608 23 | C27: 2008 | D27: 1101050021 | E27: 104,000.00 | F27: 104,000.00 | G27: 0.00 | H27: Администрация Черноморского городского поселения | I27: Справка "Перечень объектов основных средств находящихся на балансе администрации Черноморского городского поселения по состоянию на 01.01.2009года подлежащих переносу в состав имущества казны Черноморского городского поселения Северского района"
A28: 766 | B28: Трактор Беларусь МТЗ - 80 УК0606 23 | C28: 2008 | D28: 1101050027 | E28: 15,000.00 | F28: 15,000.00 | G28: 0.00 | H28: Администрация Черноморского городского поселения (Концессионное соглашение от 17.09.2012 г. № 04/22-12 с ООО "Северская саночистка") | I28: Справка "Перечень объектов основных средств находящихся на балансе администрации Черноморского городского поселения по состоянию на 01.01.2009 года подлежащих переносу в состав имущества казны Черноморского городского поселения Северского района"
A29: 767 | B29: Трактор Беларус 82,1 УО6904 | C29: 2007 | D29: 3101050115 | E29: 525,000.00 | F29: 525,000.00 | G29: 0.00 | H29: Администрация Черноморского городского поселения (МКУ "УОДОМСУ Черноморского городского поселения" постановление № 413 от 01.12.2015 "О передаче муниципального имущества в оперативное управление "МКУ УОДОМСУ Черноморского городского поселения) | I29: Справка "Перечень объектов основных средств находящихся на балансе администрации Черноморского городского поселения по состоянию на 01.01.2009года подлежащих переносу в состав имущества казны Черноморского городского поселения Северского района"
A30: 768 а | B30: Автомобиль ГАЗ 3307(мусоровоз) (п. Черноморский, гос. номер Т 506 АЕ 93, 1996 год выпуска, двигатель №0005960, шасси № 0781633) | E30: 8,000.00 | F30: 8,000.00 | G30: 0.00 | H30: Администрация Черноморского городского поселения (Концессионное соглашение от 17.09.2012 г. № 04/22-12 с ООО "Северская саночистка") | I30: В соответствии с приказом Минфина РФ от 30 декабря 2008 г. № 148н "Об утверждении инструкции по бюджетному учету" в реестр муниципальной казны было включено следующее имущество
A31: 769 | B31: Тракторный прицеп 2ПТС-4,5 мод. 8549 УО 6905 23 | C31: 2007 | D31: 3101050116 | E31: 107,000.00 | F31: 107,000.00 | G31: 0.00 | H31: Администрация Черноморского городского поселения (МКУ "УОДОМСУ Черноморского городского поселения" постановление № 413 от 01.12.2015 "О передаче муниципального имущества в оперативное управление "МКУ УОДОМСУ Черноморского городского поселения) | I31: Справка "Перечень объектов основных средств находящихся на балансе администрации Черноморского городского поселения по состоянию на 01.01.2009года подлежащих переносу в состав имущества казны Черноморского городского поселения Северского района"
A32: 978 | B32: Трактор БЕЛАРУС-82.1 7420 КУ 23 (УЛ ДЗЕРЖИНСКОГО, 24) | C32: 2015 | E32: 890,000.00 | F32: 354932.00 | G32: 535068.00 | H32: Администрация Черноморского городского поселения (МКУ "УОДОМСУ Черноморского городского поселения" постановление № 413 от 01.12.2015 "О передаче муниципального имущества в оперативное управление "МКУ УОДОМСУ Черноморского городского поселения) | I32: ПОСТАНОВЛЕНИЕ № 56 ОТ 19/02/2015 "О ПРИНЯТИИ ИМУЩЕСТВА В МУНИЦИПАЛЬНУЮ КАЗНУ ЧЕРНОМОРСКОГО ГОРОДСКОГО ПОСЕЛЕНИЯ СЕВЕРСКОГО РАЙОНА"
A33: 1035 | B33: Прицеп тракторный самосвальный 2 ПТС-4,5 гос.номер 6323 23ХА | C33: 2017 | E33: 247,000.00 | F33: 98997.60 | G33: 148,002.40 | H33: Администрация Черноморского городского поселения (МКУ "УОДОМСУ Черноморского городского поселения" договор оперативного управления муниципальным имуществом от 10.05.2017 )остановление №29 от 23.01.2015 о передаче муниципального имущества в оперативное управление) | I33: Постановление Администрации Черноморского городского поселения Северского района от 28.04.2017 г. № 196 "О принятии имущества в муниципальную казну Черноморского городского поселения Северского района"
A34: 1058 | B34: Автомобиль ВАЗ 21070 В369АМ123 | E34: 47,000.00 | F34: 47,000.00 | G34: 0.00 | H34: Администрация Черноморского городского поселения | I34: Постановление Администрации Черноморского городского поселения Северского раойна от 24.09.2018 № 368 "О принятии имущества в муниципальную собственность Черноморского городского поселения Северского раойна
